{"text_format":"1","workbook":"xlsx","n_sheets":13,"sheets":["Instructions","Application - Company","List of establishments","Application - Employee","Appendix A","Appendix A1","Appendix B","Appendix B1","Appendix B2","Appendix C","Appendix D","Appendix E","Appendix E (Sample)"],"not_rendered":{"charts":0,"images":2,"macros":0,"external_links":3,"defined_names":46,"comments":0,"pivot_tables":0},"unopened":[],"bounds":{"document_bytes":16777216,"sheet_cells":100000,"rows_first":2000,"rows_last":500,"rows_between":2000,"halvings":0,"cell_chars":16384,"cell_head_chars":4096},"cells_cut":0,"cells_raw":0,"read":"whole","date_system":"1900"}

{"sheet":"Instructions","index":0,"n_rows":33,"n_cols":14,"rows_kept":33,"cut":false,"hidden":false,"merged":[[32,1,32,33],[31,0,31,33],[15,0,15,37],[19,0,19,37],[21,0,21,37],[28,1,28,33],[24,0,24,37],[29,0,29,33],[30,0,30,33],[22,0,22,37],[23,0,23,37],[25,0,25,33],[26,0,26,33],[27,0,27,33],[16,0,16,37],[17,0,17,37],[0,0,0,12],[0,13,0,37],[1,0,1,37],[2,0,2,37],[3,0,3,37],[18,0,18,37],[13,0,13,37],[20,0,20,37],[14,0,14,37],[4,0,4,37],[5,0,5,37],[6,0,6,37],[12,0,12,37],[7,0,7,37],[8,0,8,37],[9,0,9,37],[10,0,10,37],[11,0,11,37]]}
[null,null,null,null,null,null,null,null,null,null,null,null,null,"Development of\nE-Business\nVersion: 2023-05-01"]
["Instructions – Application for an Eligibility Certificate (Corporation and Employees)"]
["This document indicates the procedure to follow to obtain the necessary corporation and employee certificates to claim the tax credit for the development of e-business (TCEB). The company must then claim this tax credit with Revenu Québec by submitting the income tax return form CO-17 and the appendix form CO-1029.8.36.DA by the prescribed deadline."]
["We strongly encourage you to consult the detailed fact sheet available on our website before completing this form.  Be sure to use the most up-to-date version of the form.  In addition, you can also consult Chapter XIII of Schedule A of the Act respecting."]
[]
["Filing an annual certificate application with Investissement Québec"]
["The company must file its application for an eligibility certificate with Investissement Québec before the end of the 15th month following the end of the company's fiscal year.  If the application is filed after that date but before the expiration  of the 18-month period following the end of the company's fiscal year, Investissement Québec may, at its discretion, accept the application if it considers that the grounds for the delay are reasonable and justify such \"late\" application. Consequently, if this applies to your situation, please attach a document summarizing the grounds for your late application."]
[]
["Nevertheless, a certificate application filed with Investissement Québec after the expiration of the 18-month period will be rejected."]
[]
["Submission of documents to Revenu Québec"]
["The company must submit its tax credit application and its certificates to Revenu Québec by the later of the following dates:\n   - The last day of the 18th month following the end of the company's fiscal year in question;\n   - The last day of the 3-month period following the certificate date of issue by Investissement Québec."]
[]
["To be considered complete, the application must include all the documents requested in Section 6 of the Application for a Corporate Certificate. "]
[]
["AGREEMENT TO EXCHANGE INFORMATION"]
["On October 7, 2009, Investissement Québec and Revenu Québec reached an agreement entitled \"Entente portant sur l'échange de renseignements nécessaires à l'administration de mesures fiscales ou à l’application d’une loi fiscale\" [agreement on the exchange of information required for the administration of fiscal measures or the enforcement of tax legislation].   Under that agreement, the two organizations can share information required to carry out their respective mandates without being required to ask for the consent of the individual in question.  The Commission d'accès à l'information du Québec has approved this agreement, after reviewing the nature of the information provided and the reasons for disclosure, and ensuring that appropriate security and confidentiality measures are in place.\n                                                                                                                                                                 \nOn February 7, 2019, Investissement Québec and Revenu Québec also reached an agreement entitled “Entente relative à la collecte de renseignements concernant le crédit d'impôt pour le développement des affaires électroniques”  [agreement to collect information regarding the e-business development tax credit] (hereinafter referred to as the “agreement to collect information”). This agreement allows Investissement Québec to collect information for Revenu Québec that the latter requires to process the application for tax credits for the development of e-business. This agreement took effect 30 days after it was received by the Commission d'accès à l'information du Québec. Sharing of information with Revenu Québec is done exclusively within these agreements."]
["ELIGIBLE SALARIES"]
["The term “eligible salaries” does not include any part of salaries related to work carried out with a government organization/entity as end user, relating to an agreement entered into, renewed or extended after September 30, 2015.\n\nGovernment organization/entity refers to a Ministry of the Quebec Government, as well as an entity referred to in Section II of the Tax Administration Act, such as  Hydro-Québec, Régie du logement, Agence du revenu du Québec and Investissement Québec.\n\nTherefore, an end user is the person or partnership directly or indirectly using the applications developed by the company subsequent to the provision of services.\n\nIn Appendices B1 and B2 of this form, you can indicate the type of contracts you have as well as the hours allocated to each contract. It is not mandatory to complete these appendices. However, Revenu Québec will request the information contained in these appendices in order to determine the eligibility of salaries in accordance with the Income Tax Act when your tax credit application is submitted. Investissement Québec may forward Appendices B1 and B2 to Revenu Québec under the agreement to collect information, which may expedite processing of your tax credit application by Revenu Québec."]
[]
["REQUIRED FEES"]
["Investissement Québec charges fees for issuing certificates. For more information on these fees, consult the fee schedule available on the website.  "]
[]
["MAILING ADDRESSES AND METHOD FOR SUBMITTING AN APPLICATION (CORPORATION AND EMPLOYEE CERTIFICATES)"]
["You must send signed applications by email to speed up the processing. For that purpose, please attach the duly signed applications for certificates (corporation and employee) in PDF format.\n\nIf your files are large, you can request a secure link from one of the email addresses listed below indicating the name of the corporation for which this link is required. (Do not send files by other types of links, such as Google.)\n\nApplication forms can also be sent by mail to one of the addresses below.\n\nIn all situations, make sure you send the electronic file of the certfication application forms (including the appendices) as well as the trial balance in Excel format.\n"]
["For companies whose head office is located in the following regions:\nBas-Saint-Laurent;\nCapitale-Nationale;\nChaudière-Appalaches;\nCentre-du-Québec;\nCôte-Nord;\nEstrie;\nGaspésie–Îles-de-la-Madeleine;\nLanaudière;\nMauricie;\nMontérégie;\nNord-du-Québec;\nSaguenay–Lac-Saint-Jean."]
[]
["Investissement Québec\nDirection, Mesures fiscales (Québec) \nÉdifice Iberville 1\n1195, avenue Lavigerie, bureau 060\nQuébec (Québec)  G1V 4N3"]
[" -","by email to: mfquebec@invest-quebec.com"]
["For companies whose head office is located in the following regions:\n\nAbitibi-Témiscamingue;\nLaval;\nLaurentides;\nMontréal;\nOutaouais."]
[]
["Investissement Québec\nDirection, Mesures fiscales (Montréal)\n1001, boulevard Robert-Bourassa, bureau 1000\nMontréal (Québec) H3B 4L4\n"]
[" -","by email to: mfmontreal@invest-quebec.com"]

{"sheet":"Application - Company","index":1,"n_rows":143,"n_cols":34,"rows_kept":143,"cut":false,"hidden":false,"merged":[[50,0,50,33],[54,0,54,33],[52,0,52,7],[43,29,43,30],[43,0,43,28],[38,22,38,33],[39,16,39,21],[52,8,52,13],[52,14,52,33],[38,14,38,15],[38,16,38,21],[39,0,39,7],[39,8,39,13],[38,0,38,7],[38,8,38,13],[44,0,44,28],[48,0,48,28],[46,0,46,28],[45,0,45,33],[49,0,49,33],[51,0,51,7],[51,8,51,13],[41,0,41,33],[47,0,47,33],[28,0,28,25],[28,27,28,32],[36,0,36,32],[34,0,34,25],[24,0,24,25],[40,0,40,33],[39,14,39,15],[39,22,39,33],[43,31,43,32],[37,0,37,33],[34,27,34,33],[35,0,35,25],[35,27,35,32],[29,0,29,33],[30,0,30,33],[31,26,31,33],[32,0,32,25],[32,27,32,32],[31,0,31,25],[33,0,33,25],[33,27,33,32],[26,0,26,25],[26,27,26,32],[27,27,27,33],[17,0,17,33],[24,26,24,33],[25,0,25,25],[25,27,25,32],[19,0,19,25],[19,26,19,33],[20,0,20,25],[20,26,20,33],[21,0,21,25],[21,26,21,33],[23,0,23,33],[22,0,22,33],[14,0,14,33],[5,0,5,33],[6,0,6,33],[8,29,8,33],[15,0,15,33],[18,0,18,33],[16,26,16,33],[16,0,16,25],[127,0,127,33],[124,1,126,30],[85,0,85,33],[84,1,84,33],[109,1,109,30],[98,0,98,33],[86,2,86,4],[86,8,86,32],[87,0,87,33],[97,0,97,33],[95,2,95,4],[95,8,95,32],[96,0,96,33],[99,0,99,33],[108,1,108,30],[107,0,107,33],[143,0,143,33],[142,23,142,33],[142,0,142,20],[141,0,141,20],[128,0,128,33],[129,0,129,33],[134,0,134,33],[130,0,131,0],[132,0,132,33],[130,1,131,33],[133,0,133,33],[135,0,135,33],[136,1,136,33],[137,0,137,33],[138,1,138,33],[139,0,139,33],[140,0,140,33],[141,23,141,33],[119,0,119,33],[103,0,103,33],[118,1,118,30],[114,1,114,30],[117,1,117,30],[102,1,102,30],[104,1,104,30],[116,0,116,33],[111,1,111,30],[112,1,112,30],[113,0,113,33],[59,0,59,33],[57,0,57,33],[115,1,115,30],[110,0,110,33],[100,1,100,30],[105,0,105,33],[101,0,101,33],[93,1,93,33],[94,0,94,33],[60,1,60,33],[81,0,81,2],[81,11,81,14],[81,15,81,22],[81,3,81,10],[64,1,64,33],[65,0,65,33],[75,1,75,33],[71,0,71,32],[66,0,66,32],[78,1,78,33],[68,1,68,33],[72,1,72,33],[80,3,80,10],[80,15,80,22],[42,0,42,33],[27,0,27,25],[61,1,61,33],[51,14,51,33],[120,1,120,30],[121,0,121,33],[122,1,122,30],[123,0,123,33],[55,0,55,33],[53,0,53,33],[56,0,56,33],[89,1,89,25],[90,1,90,26],[91,1,91,25],[92,0,92,33],[106,1,106,30],[83,0,83,33],[81,23,81,33],[82,0,82,33],[80,23,80,33],[58,0,58,33],[63,1,63,33],[74,1,74,33],[76,0,76,33],[3,0,3,33],[0,0,0,12],[1,0,1,33],[0,13,0,33],[13,0,13,25],[13,26,13,33],[9,29,9,33],[9,0,9,7],[9,10,9,17],[10,0,10,33],[9,20,9,27],[8,0,8,7],[8,10,8,17],[8,20,8,27],[11,0,11,33],[12,0,12,33],[4,0,4,33],[7,0,7,33],[80,0,80,2],[80,11,80,14],[79,0,79,33],[69,1,69,33],[77,0,77,33],[70,0,70,33],[73,1,73,33],[67,1,67,33],[62,0,62,33]]}
[null,null,null,null,null,null,null,null,null,null,null,null,null,"Development of\nE-Business\nVersion: 2023-05-01"]
["Application for a Corporation Certificate"]
[]
["Please consult the Instructions tab before completing this form."]
["1. IDENTIFICATION OF THE COMPANY"]
["Company name"]
[]
[]
["NEQ (Québec entreprise number)",null,null,null,null,null,null,null,null,null,"IQ business number*",null,null,null,null,null,null,null,null,null,"IQ file number*",null,null,null,null,null,null,null,null,"Date of incorporation"]
[]
["*Entreprise (business) number and file number assigned by IQ for TCEB purposes. Not required for the initial application. If this is a second application, these numbers can be found on correspondence received from IQ."]
[]
["Company's website"]
[]
[]
["Addresses of all establishments - Enter the main address here (if more than one establishment, please append the complete list)"]
[]
[]
["Mailing address"]
[]
[]
[]
[]
["Authorized company representative"]
[]
["Representative's title",null,null,null,null,null,null,null,null,null,null,null,null,null,null,null,null,null,null,null,null,null,null,null,null,null,null,"Telephone",null,null,null,null,null,"Ext."]
[]
["Representative's email address",null,null,null,null,null,null,null,null,null,null,null,null,null,null,null,null,null,null,null,null,null,null,null,null,null,null,"Cellular"]
[]
[]
["Authorized company agent"]
[]
["Agent’s title",null,null,null,null,null,null,null,null,null,null,null,null,null,null,null,null,null,null,null,null,null,null,null,null,null,null,"Telephone",null,null,null,null,null,"Ext."]
[]
["Agent's email address",null,null,null,null,null,null,null,null,null,null,null,null,null,null,null,null,null,null,null,null,null,null,null,null,null,null,"Cellular"]
[]
[]
["2. FISCAL YEAR COVERED BY THIS APPLICATION"]
["Fiscal year from:"]
[null,null,null,null,null,null,null,null,"(yyyy-mm-dd)",null,null,null,null,null,null,null,"(yyyy-mm-dd)"]
[]
["3. REORGANIZATION OR ACQUISITION OF CONTROL"]
["During the fiscal year in question up to submission of this application, did the company:"]
[null,null,null,null,null,null,null,null,null,null,null,null,null,null,null,null,null,null,null,null,null,null,null,null,null,null,null,null,null,"Yes",null,"No"]
["— Undergo an acquisition of control resulting in a deemed year end?"]
[]
["— Acquire an interest in another company?"]
[]
["— Undergo a reorganization (e.g., merger, winding-up, acquisition or disposition of all assets)?"]
["If so, specify the date and nature of the changes:"]
[]
["Date"]
[null,null,null,null,null,null,null,null,"(yyyy-mm-dd)"]
[]
[]
[]
["4. ACTIVITIES"]
["This section is used to describe the activities carried out by the company during the fiscal year in question. It should provide for a clear understanding of the activities that generated income, identify the NAICS codes corresponding to such income and ultimately determine the company's eligibility. "]
["A. COMPANY’S ACTIVITIES (add more lines or enclose a separate document if necessary).     "]
[]
["1.","For initial applications, provide a detailed description for each product and service offered during the fiscal year in question. You may enclose additional documents, such as a company brochure. \n\nIf this is not your initial application, please provide a description of new products and services offered during the fiscal year in question."]
[]
[]
["2.","Describe your business model or any change in your business model that took place during the fiscal year.  Describe each stage involved in the development of your product or the provision of your services. Indicate the jobs involved in completing each of these stages. In addition, please indicate your target customers, your target market or your area of expertise. If this is not your first request, please describe only changes in your business model, customer base, and markets that have taken place during the fiscal year in question."]
[]
[]
["B. INCOME-GENERATING ACTIVITIES"]
[null,"Provide a summary of the main projects (contracts) completed during the fiscal year in question.  The projects listed must account for at least 50% of the company's gross income or represent the company's 10 largest projects in terms of gross income. "]
[null,"Please use Appendix B for this purpose. "]
[null,"Contracts regarding a government organization/entity end user: If any contracts were conducted during the fiscal year involving a government organization/entity end user, we recommend that you complete Appendix B1 instead of Appendix B to expedite processing of your tax credit application by Revenu Québec. The contracts listed in Appendix B1 must account for 100% of the gross income."]
[]
["C. INCOME BREAKDOWN"]
["1.","Please provide a description of the nature of the income recorded in each income item in your trial balance.  "]
[null,"Please use Appendix C for this purpose. "]
[null,"If your income is not broken down in the trial balance, please break down the company's gross income according to the different products and services offered in the fiscal year in question. "]
[]
[]
["D. SALES JOURNAL"]
[null,"Please indicate the numbers of the first and last invoices for sales recorded during the fiscal year in question. As part of its review process, Investissement Québec may require samples of sales invoices. The information provided will be used for that sampling."]
[]
[]
[null,null,null,"First invoice",null,null,null,null,null,null,null,null,null,null,null,"Last invoice"]
[]
["5. SERVICES PROVIDED"]
["1.","Does the company provide services to a person or partnership to which it has a non-arm's-length relationship?"]
[]
[null,null,"Yes",null,null,null,"No"]
[]
[null,"If so, please provide the most recent version of the following documents, if applicable:"]
[null,"CO-17S.9"]
[null,"T106"]
[null,"Any inter-company agreement (distribution and transfer price, and others)"]
[]
["2.","Has the company signed a distributorship contract, licence, lease, marketing, supply or management agreement, any other agreement or arrangement with a person or partnership?"]
[]
[null,null,"Yes",null,null,null,"No"]
[]
["If you answered yes to either of the above questions, please complete Appendix D; otherwise, go directly to Section 6.  "]
[]
["6. MANDATORY DOCUMENTS TO ENCLOSE WITH THIS APPLICATION (check off the documents enclosed)"]
["—  ","Non-consolidated financial statements for the fiscal year in question;1"]
[]
["—  ","Non-consolidated financial statements for the previous fiscal year1 (if this is your first application);"]
[]
["—  ","Trial balance for the fiscal year in question, in Excel format if possible;"]
[]
["—  ","Trial balance for the previous fiscal year (if this is your first application) in Excel format if possible;"]
[]
["—  ","Required supporting documents listed in Appendices A and A1 (records of employment, hiring contracts, "]
[null,"résumés, pay slips);"]
[]
["—  ","Sales journal for the fiscal year covered by the application, by customer or by project. As a minimum, "]
[null,"the sales journal must include invoice and ledger account numbers, as well as invoice amounts;"]
[]
["—  ","Corporate organization chart identifying the shareholders and related/affiliated companies (the percentage of "]
[null,"of shares held must be indicated);"]
[]
["—  ","Detailed organization chart indicating the hierarchical relationships and identifying all company employees. "]
[null,"This organization chart must include employees covered by this application as well as those not covered;"]
[]
["—  ","Electronic version of the application for certificates (including the appendices) in Excel format;"]
[]
["—  ","Duly signed applications for corporation and employee certificates in PDF format;"]
[]
["—  ","If applicable, duly signed power of attorney designating an agent to represent the company in its dealings with Investissement Québec.  You can use the template available on Investissement Québec’s website at: http://www.investquebec.com/documents/qc/formulaires/Procuration_en.doc\t\t\t\t\t\t\t\t\t\t\t\t\t\t\t\t\t\t\t\t\t\t\t\t\t\t\t\t\n\t\t\t\t\t\t\t\t\t\t\t\t\t\t\t\t\t\t\t\t\t\t\t\t\t\t\t\t\n\t\t\t\t\t\t\t\t\t\t\t\t\t\t\t\t\t\t\t\t\t\t\t\t\t\t\t\t\n"]
["     "]
[]
[]
["If any of the documents are not enclosed, please explain why."]
[]
[1,"Financial statements may be in draft form provided you send us the final statements as soon as they become available."]
[]
[]
["7. DECLARATION OF THE AUTHORIZED COMPANY REPRESENTATIVE OR AGENT"]
["I, the undersigned, duly authorized representative or agent of the company, declare that the information provided in this application, the appendices and the related documents are complete and accurate in all respects."]
["Furthermore, unless otherwise expressly stated, I authorize the Tax Measures Department to share with the other departments of Investissement Québec any information obtained in the course of this application process that could prove necessary for the review of any application for financing, investment or any other service provided by Investissement Québec."]
[null,"  I authorize the sharing of information"]
[]
[null," I do not authorize the sharing of information"]
[]
["Lastly, I certify that the company has not changed the content of this application."]
[]
["Signature of the company's authorized representative or agent",null,null,null,null,null,null,null,null,null,null,null,null,null,null,null,null,null,null,null,null,null,null,"Date"]

{"sheet":"List of establishments","index":2,"n_rows":32,"n_cols":5,"rows_kept":32,"cut":false,"hidden":false,"merged":[[8,4,8,5],[9,4,9,5],[10,0,10,1],[0,0,0,1],[1,0,1,1],[2,0,2,1],[3,0,3,1],[5,0,5,1],[7,4,7,5]]}
["Development of\nE-Business\nVersion : 2023-05-01"]
["List of establishments"]
["If the company has more than one establishment"]
[]
["Company name"]
[{"$f":"IF('Application - Company'!A7=\"\",\"\",'Application - Company'!A7)","v":""},null,null,""]
[]
["Fiscal year from",{"$f":"IF('Application - Company'!I39=\"\",\"\",'Application - Company'!I39)","v":""},null,"",""]
["to",{"$f":"IF('Application - Company'!Q39=\"\",\"\",'Application - Company'!Q39)","v":""},null,"",""]
["File number",{"$f":"IF('Application - Company'!U10=\"\",\"\",'Application - Company'!U10)","v":""},null,"",""]
["Addresses for all establishments   (One address per line)"]
["Main address"]
[null,{"$f":"IF('Application - Company'!A17=\"\",\"\",'Application - Company'!A17)","v":""}]
["Establishment 1"]
[]
["Establishment 2"]
[]
["Establishment 3"]
[]
["Establishment 4"]
[]
["Establishment 5"]
[]
["Establishment 6"]
[]
["Establishment 7"]
[]
["Establishment 8"]
[]
["Establishment 9"]
[]
["Establishment 10"]

{"sheet":"Application - Employee","index":3,"n_rows":124,"n_cols":36,"rows_kept":124,"cut":false,"hidden":false,"merged":[[109,1,109,37],[110,1,110,37],[111,1,111,37],[112,1,112,37],[71,1,71,37],[64,21,64,29],[64,30,64,36],[100,1,100,37],[101,29,101,30],[102,29,102,30],[103,1,103,37],[105,1,105,37],[106,1,106,37],[108,1,108,37],[95,1,95,37],[96,0,96,37],[83,0,83,37],[89,1,89,37],[84,1,84,37],[85,1,85,37],[91,1,91,37],[90,0,90,37],[79,1,79,37],[82,0,82,37],[46,1,46,37],[41,0,41,37],[76,1,76,37],[48,0,48,37],[52,1,52,37],[49,1,50,37],[49,0,50,0],[51,4,51,8],[51,9,51,37],[51,1,51,3],[56,1,56,37],[57,30,57,36],[57,8,57,9],[57,15,57,16],[58,1,58,19],[58,21,58,29],[58,30,58,36],[59,1,59,37],[60,1,60,37],[87,0,87,37],[86,1,86,37],[53,1,53,19],[54,1,54,19],[54,30,54,36],[55,30,55,36],[70,1,70,37],[53,21,53,29],[53,30,53,36],[55,1,55,19],[61,1,61,19],[61,21,61,29],[61,30,61,36],[65,1,65,37],[66,1,66,37],[64,1,64,19],[15,0,15,25],[18,0,18,37],[21,0,21,25],[35,27,35,32],[45,0,45,37],[42,16,42,21],[42,8,42,13],[43,8,43,13],[43,16,43,21],[43,22,43,37],[39,0,39,25],[39,27,39,32],[39,35,39,37],[43,14,43,15],[43,0,43,7],[34,0,34,37],[42,0,42,7],[42,22,42,37],[40,0,40,37],[42,14,42,15],[35,0,35,25],[14,0,14,25],[14,26,14,37],[16,26,16,37],[11,26,11,37],[38,27,38,37],[33,0,33,25],[38,0,38,25],[11,0,11,25],[17,0,17,37],[15,26,15,37],[16,0,16,25],[21,26,21,37],[22,0,22,37],[30,0,30,25],[30,27,30,34],[30,35,30,37],[31,0,31,37],[37,0,37,37],[32,0,32,37],[36,35,36,37],[35,35,35,37],[33,26,33,37],[36,0,36,25],[36,27,36,32],[0,0,0,12],[1,0,1,37],[0,13,0,37],[2,0,2,37],[19,0,19,25],[20,0,20,25],[5,0,5,37],[3,0,3,37],[4,0,4,37],[6,0,6,7],[6,10,6,17],[6,20,6,27],[6,30,6,37],[20,26,20,37],[12,0,12,37],[10,0,10,37],[7,0,7,7],[7,10,7,17],[8,0,8,37],[7,20,7,27],[19,26,19,37],[7,30,7,37],[9,0,9,37],[13,0,13,37],[123,23,123,37],[123,0,123,20],[122,0,122,20],[122,23,122,37],[114,0,114,37],[23,0,23,37],[24,0,24,25],[24,26,24,37],[26,0,26,25],[26,27,26,32],[26,35,26,37],[25,0,25,37],[27,0,27,25],[27,27,27,34],[27,35,27,37],[29,0,29,25],[28,0,28,37],[29,27,29,37],[115,0,115,37],[62,1,62,37],[44,0,44,37],[54,21,54,29],[55,21,55,29],[47,1,47,37],[117,1,117,33],[118,0,118,33],[119,1,119,33],[120,0,120,33],[121,0,121,33],[68,0,68,37],[63,1,63,37],[80,1,80,37],[81,1,81,37],[77,0,77,37],[72,0,72,37],[73,1,74,37],[75,0,75,37],[67,0,67,37],[92,1,92,37],[113,0,113,37],[97,1,97,37],[98,1,98,37],[69,0,69,37],[116,0,116,37],[93,0,93,37],[94,1,94,37],[78,0,78,37],[88,1,88,37]]}
[null,null,null,null,null,null,null,null,null,null,null,null,null,"Development of\nE-Business\nVersion: 2023-05-01"]
["Application for an Employee Certificate"]
["1. IDENTIFICATION OF THE COMPANY"]
["Company name"]
[{"$f":"IF('Application - Company'!A7=\"\",\"\",'Application - Company'!A7)","v":""}]
[]
["NEQ (Québec entreprise number)",null,null,null,null,null,null,null,null,null,"IQ business number*",null,null,null,null,null,null,null,null,null,"IQ file number*",null,null,null,null,null,null,null,null,null,"Date of incorporation"]
[{"$f":"IF('Application - Company'!A10=\"\",\"\",'Application - Company'!A10)","v":""},null,null,null,null,null,null,null,null,null,{"$f":"IF('Application - Company'!K10=\"\",\"\",'Application - Company'!K10)","v":""},null,null,null,null,null,null,null,null,null,{"$f":"IF('Application - Company'!U10=\"\",\"\",'Application - Company'!U10)","v":""},null,null,null,null,null,null,null,null,null,{"$f":"IF('Application - Company'!AD10=\"\",\"\",'Application - Company'!AD10)","v":""}]
["*Enterprise (business) number and file number assigned by IQ for TCEB purposes. Not required for the initial application. If this is a second application, these numbers can be found on correspondence received from IQ."]
[]
["Company's website"]
[""]
[]
["Addresses of all establishments (if more than one establishment, please add - refer to the Corporate Application)"]
[""]
[""]
[""]
[]
["Mailing address"]
[""]
[""]
[""]
[]
["Authorized company representative"]
[""]
[]
["Representative's title",null,null,null,null,null,null,null,null,null,null,null,null,null,null,null,null,null,null,null,null,null,null,null,null,null,null,"Telephone",null,null,null,null,null,null,null,"Ext."]
["",null,null,null,null,null,null,null,null,null,null,null,null,null,null,null,null,null,null,null,null,null,null,null,null,null,null,""]
[]
["Representative's email address",null,null,null,null,null,null,null,null,null,null,null,null,null,null,null,null,null,null,null,null,null,null,null,null,null,null,"Cellular"]
["",null,null,null,null,null,null,null,null,null,null,null,null,null,null,null,null,null,null,null,null,null,null,null,null,null,null,""]
[]
["Authorized company agent"]
[]
[]
["Agent’s title",null,null,null,null,null,null,null,null,null,null,null,null,null,null,null,null,null,null,null,null,null,null,null,null,null,null,"Telephone",null,null,null,null,null,"Poste",null,"Ext."]
[]
[]
["Agent's email address",null,null,null,null,null,null,null,null,null,null,null,null,null,null,null,null,null,null,null,null,null,null,null,null,null,null,"Cellular"]
[]
[]
["2. FISCAL YEAR COVERED BY THIS APPLICATION"]
["Fiscal year from:",null,null,null,null,null,null,null,{"$f":"IF('Application - Company'!I39=\"\",\"\",'Application - Company'!I39)","v":""},null,null,null,null,null,"to:",null,{"$f":"IF('Application - Company'!Q39=\"\",\"\",'Application - Company'!Q39)","v":""}]
[null,null,null,null,null,null,null,null,"(yyyy-mm-dd)",null,null,null,null,null,null,null,"(yyyy-mm-dd)"]
[]
["3. INFORMATION ABOUT EMPLOYEES"]
["— ","For all employees for whom you are claiming a tax credit, please complete Appendix A \"LIST OF EMPLOYEES   "]
[null,"CONCERNED” and Appendix E “JOB DESCRIPTION”."]
[]
["—  ","Indicate the total number of people employed by your company for the fiscal year in question. The total number of employees must include all company employees (whether or not they are covered, whether they are full-time, part-time or seasonal employees, and whether they were employed by the company for the entire year or for a shorter period). "]
[]
[]
["—  ","Indicate the jobs not covered by this application as well as the number of employees involved."]
[null,"Jobs not covered",null,null,null,null,null,null,null,null,null,null,null,null,null,null,null,null,null,null,null,"Number of employees involved"]
[]
[]
["—  ","Was there research and development work carried out during the fiscal year covered by this application?"]
[null,null,null,null,null,null,null,null,"Yes",null,null,null,null,null,null,"No"]
[]
[null,"If available at the time of filing the request (or in draft form), please provide a table with details on the number of hours for each employee working on these activities, as well as a copy of the report prepared for the Canada Revenue Agency. "]
[]
[]
["—  ","Provide a detailed description of the methodology used to determine the percentages indicated in Appendix E (percentage of time allocated to each of the tasks listed). Also indicate the documents and/or computerized tools that were used to determine these percentages (increase the space if needed or enclose a separate document). (Examples of documents: time sheets, invoicing-related documents, etc.)"]
[]
[]
["—  ","During the fiscal year in question, for an activity involving the design or development of e-commerce solutions that is incidental to an activity relating to the development or integration of information systems or of technology infrastructures carried on by the corporation, identify the employees who carried out such activities, the mandates on which they performed the activities and the number of hours worked by each employee involved. \n\t\t"]
[]
[]
["4.  ELIGIBLE EMPLOYEE ACTIVITIES"]
["Please check any categories that best correspond to the eligible activities carried out by covered employees."]
[null,"Information technology consulting services relating to technology, systems development or e-business processes and "]
[null,"solutions."]
[]
[null,"Development or integration of information systems or technology infrastructure, as well as any activities involving the maintenance or development of such information systems or technology infrastructure, to the extent that they are incidental to any such development or integration operations carried out by the company or to the design or development of electronic commerce solutions allowing a monetary transaction between the person on whose behalf this design or development is carried out, and the clientele of that person."]
[]
[]
[null,"Development of security and identification services relating to e-business activities."]
[]
["5. E-BUSINESS"]
[null,"The term \"e-business\" is defined in the detailed fact sheet available on our website: \nhttps://www.investquebec.com/quebec/en/financial-products.html"]
[null,"Please describe how the activities carried out by your company transform a company's main business processes by integrating Internet or any other network technologies.  This description must be provided for your main service contracts or your main applications developed. "]
[]
[]
["6. OTHER ACTIVITIES"]
[null,"Specify whether the following activities were carried out by the employees indicated in Appendix A—List of Employees Concerned during the fiscal year in question:"]
["1. ","Specify whether any of the company's claimed employees received training and, if so, specify which ones. Also, indicate the number of hours of training received by each claimed employee and the percentage of time spent on such training, using Appendix E (add more space if necessary)."]
[]
[]
["2.","Specify whether your company's employees provided training and, if so, specify which ones. Also, indicate the number of hours of training provided by each claimed employee or the percentage of time that training represented, using Appendix E (add more space if necessary)."]
[]
[]
["3. ","If installation activities were carried out in developing information systems or technology infrastructures, please provide a detailed description of what such activities involved.  Also, please identify the employees involved in such activities (add more space if necessary)."]
[]
[]
["4. ","If your employees are involved in implementing an information system, please provide a brief summary of each of the stages in your implementation process (examples of stages in the implementation process:  gap analysis, internal process analysis, parameterization and configuration, data migration, audit and testing, production roll-out, training, technical support and follow-up for application operationalization). The summary of each stage must clearly show the nature of the work completed by your company's employees.  For each stage described, please indicate the percentage of time that the stage in the implementation process represented (add more space if necessary)."]
[]
[]
["5. ","Is after-sales service or customer support offered? If so, please describe what these services involve.  Also, provide five examples of these services that are most frequently offered (add more space if necessary)."]
[]
[]
["6.","Did the employees of your corporation carry out activities that could be considered to be related to a digital platform that hosts, or allows for the sharing, or is intended to host or allow for the sharing, of content encouraging violence, sexism, racism or any other form of discrimination or comprising explicit sex scenes or graphic representations of such scenes?"]
[null,null,null,null,null,null,null,null,null,null,null,null,null,null,null,null,null,null,null,null,null,null,null,null,null,null,null,null,null,"Yes",null,null,"No"]
[]
[null,"If yes, please answer the following questions:"]
[]
[null,"a) Identify the employees who carried out such activities, the mandates on which they carried out the activities and the number of hours worked by each employee involved. "]
[]
[]
[null,"b) List the measures the corporation has taken to ensure that the activities performed by its employees are not related to such a platform."]
[]
[]
[null,"c) Confirm to us that all or substantially all of the content hosted or shared, or that is intended to be hosted or shared, does not comprise such content. "]
[]
[]
["7. DECLARATION OF THE AUTHORIZED COMPANY REPRESENTATIVE OR AGENT"]
["I, the undersigned, duly authorized representative or agent of the company, declare that the information provided in this application, the appendices and the related documents are complete and accurate in all respects."]
["Furthermore, unless otherwise expressly stated, I authorize the Tax Measures Department to share with the other departments of Investissement Québec any information obtained in the course of this application process that could prove necessary for the review of any application for financing, investment or any other service provided by Investissement Québec."]
[null," I authorize the sharing of information"]
[]
[null," I do not authorize the sharing of information"]
[]
["Lastly, I certify that the company has not changed the content of this application."]
[]
["Signature of the company's authorized representative or agent",null,null,null,null,null,null,null,null,null,null,null,null,null,null,null,null,null,null,null,null,null,null,"Date"]

{"sheet":"Appendix A","index":4,"n_rows":41,"n_cols":15,"rows_kept":41,"cut":false,"hidden":false,"merged":[[33,0,33,11],[34,2,34,3],[35,2,35,4],[10,6,12,6],[30,0,30,8],[10,8,12,8],[10,4,11,5],[10,1,11,1],[31,0,31,11],[18,0,18,3],[27,0,27,11],[28,0,28,8],[29,0,29,8],[25,1,25,11],[16,0,16,14],[17,0,17,14],[6,0,6,11],[0,0,0,2],[1,0,1,11],[2,0,2,11],[3,1,3,11],[4,1,4,4],[4,7,4,8],[5,1,5,4],[0,4,0,14],[32,0,32,14],[7,2,7,3],[10,7,12,7],[10,2,12,2],[10,3,12,3],[9,4,9,5],[21,1,21,11],[23,1,23,11],[19,1,19,11],[10,0,11,0],[10,9,12,9],[10,10,12,10],[10,11,12,11]]}
[null,null,null,null,"Development of\nE-Business\nVersion: 2023-05-01"]
["Appendix A—Application for an Employee Certificate\nList of employees concerned"]
["(Appendix A is an integral component of this Employee Certificate Application)"]
[null,"Complete this Appendix for all employees for whom you are claiming1the tax credit.  "]
[null,"Company name",null,null,null,null,null,"NEQ",null,null,null,"IQ business number"]
[null,{"$f":"IF('Application - Company'!A7=\"\",\"\",'Application - Company'!A7)","v":""},null,null,null,null,null,{"$f":"IF('Application - Company'!A10=\"\",\"\",'Application - Company'!A10)","v":""},null,null,null,{"$f":"IF('Application - Company'!K10=\"\",\"\",'Application - Company'!K10)","v":""}]
[]
[null,null,"Fiscal year",null,"from",null,"to",null,null,null,null,"IQ file number"]
[null,null,null,null,{"$f":"IF('Application - Company'!I39=\"\",\"\",'Application - Company'!I39)","v":""},null,{"$f":"IF('Application - Company'!Q39=\"\",\"\",'Application - Company'!Q39)","v":""},null,null,null,null,{"$f":"IF('Application - Company'!U10=\"\",\"\",'Application - Company'!U10)","v":""}]
[]
["Employee name","SIN","Job\n(must correspond to the title indicated in employee’s job description and in the organization chart) (You must indicate the title in French)","Last hire date\n(yyyy-mm-dd)","Employment period during the fiscal year2",null,"Does the employee still hold the same job as of the date this application was signed (Y/N)3","Salary paid out4 for this employment period","Total hours worked (including vacation) during this employment period","Total number of weeks since hire5","Average number of hours worked per week6","Comments7"]
[]
["Enter as follows                                Last name (1 space) First name","999-999-999",null,null,"From: (yyyy-mm-dd)","To: (yyyy-mm-dd)",null,null,null,null,null,null,"Hours worked, not including vacation and leaves","Employee hourly rate","Address of the main establishment at which the employee reports for work"]
[null,null,null,null,null,null,null,null,null,null,null,null,null,{"$f":"H14/I14","v":{"$error":"#DIV/0!"}}]
[null,null,null,null,null,null,null,null,null,null,null,null,null,{"$f":"H15/I15","v":{"$error":"#DIV/0!"}}]
[null,null,null,null,null,null,null,null,null,null,null,null,null,{"$error":"#DIV/0!"}]
["1. Please refer to Chapter 13 of Schedule A of the Act respecting the sectoral parameters of certain fiscal measures or the detailed fact sheet on our website for information on employee eligibility requirements."]
["2. The employment period must be included in the fiscal year covered by the application and end as soon as the employment relationship with the company is ended, even if amounts are paid to the employee post termination (such as vacation pay)."]
["   In the following cases, an absence period shall be included in the employment period:"]
[null,"a) Vacation;"]
[]
[null,"B) A period when an employee receives employment insurance for a parental, maternity or sick leave (provided the employment relationship is not terminated);"]
[]
[null,"c)  A period when an employee receives CSST benefits for a temporary illness or disability. If the illness or disability leave is permanent, the period cannot be included;."]
[]
[null,"d)  A period when an employee receives employment insurance benefits paid by a third-party payer other than the company, provided the period of absence is temporary."]
["3. For employees who left the company within 40 weeks of their hire date, please complete Appendix A1 – Staff Movement."]
["4. The salary paid is the gross salary paid to the employee for the employment period in question."]
["5.  For each employee with less than 40 weeks of employment, please provide:"]
["      a) a copy of the employee’s employment contract signed by both parties;"]
["      b) a copy of the employee’s résumé at the time of hire."]
["If there are more than 25 employees involved, you do not need to provide the requested documents when submitting your application.  The project manager will contact you as soon as possible to obtain the documents required to proceed with your application."]
["6. Keep in mind that to meet the eligibility requirements, employees must have worked a minimum of 26 hours a week. For any employees covered who have not worked an average of 26 hours per week, please provide all their pay records for the fiscal year covered by this application, except for employees who were on maternity, parental, or sick leave. "]
["7.  In this column, please provide any information that will help expedite the processing of your application, such as details about temporary absences and changes in duties."]
[null,"Examples: ","Sick leave for eight weeks; "]
[null,null,"Parental leave from March 5 to April 5;"]
[null,null,"Internship from January 1 to July 1;"]
[null,null,"Unpaid leave."]
[]
["yes"]
["No"]

{"sheet":"Appendix A1","index":5,"n_rows":48,"n_cols":26,"rows_kept":48,"cut":false,"hidden":false,"merged":[[0,4,0,12],[5,10,5,12],[16,10,16,12],[13,4,13,5],[14,4,14,5],[15,4,15,5],[16,4,16,5],[13,1,13,2],[14,1,14,2],[15,1,15,2],[16,1,16,2],[23,8,23,9],[19,10,19,12],[20,10,20,12],[21,10,21,12],[22,10,22,12],[23,10,23,12],[19,8,19,9],[20,8,20,9],[21,8,21,9],[22,8,22,9],[23,1,23,2],[19,4,19,5],[20,4,20,5],[21,4,21,5],[22,4,22,5],[23,4,23,5],[22,1,22,2],[18,1,18,2],[26,1,26,2],[17,4,17,5],[25,10,25,12],[26,10,26,12],[26,4,26,5],[24,8,24,9],[25,8,25,9],[26,8,26,9],[27,8,27,9],[8,10,10,12],[11,10,11,12],[12,10,12,12],[17,10,17,12],[18,10,18,12],[24,10,24,12],[18,8,18,9],[8,8,10,9],[11,8,11,9],[12,8,12,9],[17,8,17,9],[13,8,13,9],[14,8,14,9],[15,8,15,9],[16,8,16,9],[18,4,18,5],[24,4,24,5],[25,4,25,5],[13,10,13,12],[14,10,14,12],[15,10,15,12],[27,0,27,7],[32,9,32,10],[6,0,6,9],[0,0,0,2],[1,0,1,10],[2,0,2,10],[5,1,5,4],[3,1,3,9],[4,10,4,12],[4,8,4,9],[33,9,33,10],[4,1,4,4],[4,6,4,7],[31,9,31,10],[28,0,28,12],[8,6,10,6],[8,3,10,3],[7,8,7,10],[7,4,7,5],[8,7,10,7],[8,0,9,0],[8,4,10,5],[11,4,11,5],[12,4,12,5],[19,1,19,2],[20,1,20,2],[21,1,21,2],[8,1,10,2],[11,1,11,2],[12,1,12,2],[17,1,17,2],[24,1,24,2],[25,1,25,2],[34,9,34,10],[35,9,35,10],[36,9,36,10],[37,9,37,10],[38,9,38,10],[39,9,39,10],[40,9,40,10],[41,9,41,10],[42,9,42,10],[43,9,43,10],[44,9,44,10],[45,9,45,10],[46,9,46,10],[47,9,47,10],[48,9,48,10],[49,9,49,10],[50,9,50,10],[51,9,51,10],[52,9,52,10],[53,9,53,10],[54,9,54,10],[55,9,55,10],[56,9,56,10],[57,9,57,10],[58,9,58,10],[59,9,59,10],[60,9,60,10],[61,9,61,10],[62,9,62,10],[63,9,63,10],[64,9,64,10],[65,9,65,10],[66,9,66,10],[67,9,67,10],[68,9,68,10],[69,9,69,10],[70,9,70,10],[71,9,71,10],[72,9,72,10],[73,9,73,10],[74,9,74,10],[75,9,75,10],[76,9,76,10],[77,9,77,10],[78,9,78,10],[79,9,79,10],[80,9,80,10],[81,9,81,10],[82,9,82,10],[83,9,83,10],[84,9,84,10],[85,9,85,10],[86,9,86,10],[87,9,87,10],[88,9,88,10],[89,9,89,10],[90,9,90,10],[91,9,91,10],[92,9,92,10],[93,9,93,10],[94,9,94,10],[95,9,95,10],[96,9,96,10],[97,9,97,10],[98,9,98,10],[99,9,99,10],[100,9,100,10],[101,9,101,10],[102,9,102,10],[103,9,103,10],[104,9,104,10],[105,9,105,10],[106,9,106,10],[107,9,107,10],[108,9,108,10],[109,9,109,10],[110,9,110,10],[111,9,111,10],[112,9,112,10],[113,9,113,10],[114,9,114,10],[115,9,115,10],[116,9,116,10],[117,9,117,10],[118,9,118,10],[119,9,119,10],[120,9,120,10],[121,9,121,10],[122,9,122,10],[123,9,123,10],[124,9,124,10],[125,9,125,10],[126,9,126,10],[127,9,127,10],[128,9,128,10],[129,9,129,10],[130,9,130,10],[131,9,131,10],[132,9,132,10],[133,9,133,10],[134,9,134,10],[135,9,135,10],[136,9,136,10],[137,9,137,10],[138,9,138,10],[139,9,139,10],[140,9,140,10],[141,9,141,10],[142,9,142,10],[143,9,143,10],[144,9,144,10],[145,9,145,10],[146,9,146,10],[147,9,147,10],[148,9,148,10],[149,9,149,10],[150,9,150,10],[151,9,151,10],[152,9,152,10],[153,9,153,10],[154,9,154,10],[155,9,155,10],[156,9,156,10],[157,9,157,10],[158,9,158,10],[159,9,159,10],[160,9,160,10],[161,9,161,10],[162,9,162,10],[163,9,163,10],[164,9,164,10],[165,9,165,10],[166,9,166,10],[167,9,167,10],[168,9,168,10],[169,9,169,10],[170,9,170,10],[171,9,171,10],[172,9,172,10],[173,9,173,10],[174,9,174,10],[175,9,175,10],[176,9,176,10],[177,9,177,10],[178,9,178,10],[179,9,179,10],[180,9,180,10],[181,9,181,10],[182,9,182,10],[183,9,183,10],[184,9,184,10],[185,9,185,10],[186,9,186,10],[187,9,187,10],[188,9,188,10],[189,9,189,10],[190,9,190,10],[191,9,191,10],[192,9,192,10],[193,9,193,10],[194,9,194,10],[195,9,195,10],[196,9,196,10],[197,9,197,10],[198,9,198,10],[199,9,199,10],[200,9,200,10],[201,9,201,10],[202,9,202,10],[203,9,203,10],[204,9,204,10],[205,9,205,10],[206,9,206,10],[207,9,207,10],[208,9,208,10],[209,9,209,10],[210,9,210,10],[211,9,211,10],[212,9,212,10],[213,9,213,10],[214,9,214,10],[215,9,215,10],[216,9,216,10],[217,9,217,10],[218,9,218,10],[219,9,219,10],[220,9,220,10],[221,9,221,10],[222,9,222,10],[223,9,223,10],[224,9,224,10],[225,9,225,10],[226,9,226,10],[227,9,227,10],[228,9,228,10],[229,9,229,10],[230,9,230,10],[231,9,231,10],[232,9,232,10],[233,9,233,10],[234,9,234,10],[235,9,235,10],[236,9,236,10],[237,9,237,10],[238,9,238,10],[239,9,239,10],[240,9,240,10],[241,9,241,10],[242,9,242,10],[243,9,243,10],[244,9,244,10],[245,9,245,10],[246,9,246,10],[247,9,247,10],[248,9,248,10],[249,9,249,10],[250,9,250,10],[251,9,251,10],[252,9,252,10],[253,9,253,10],[254,9,254,10],[255,9,255,10],[256,9,256,10],[257,9,257,10],[258,9,258,10],[259,9,259,10],[260,9,260,10],[261,9,261,10],[262,9,262,10],[263,9,263,10],[264,9,264,10],[265,9,265,10],[266,9,266,10],[267,9,267,10],[268,9,268,10],[269,9,269,10],[270,9,270,10],[271,9,271,10],[272,9,272,10],[273,9,273,10],[274,9,274,10],[275,9,275,10],[276,9,276,10],[277,9,277,10],[278,9,278,10],[279,9,279,10],[280,9,280,10],[281,9,281,10],[282,9,282,10],[283,9,283,10],[284,9,284,10],[285,9,285,10],[286,9,286,10],[287,9,287,10],[288,9,288,10],[289,9,289,10],[290,9,290,10],[291,9,291,10],[292,9,292,10],[293,9,293,10],[294,9,294,10],[295,9,295,10],[296,9,296,10],[297,9,297,10],[298,9,298,10],[299,9,299,10],[300,9,300,10],[301,9,301,10],[302,9,302,10],[303,9,303,10],[304,9,304,10],[305,9,305,10],[306,9,306,10],[307,9,307,10],[308,9,308,10],[309,9,309,10],[310,9,310,10],[311,9,311,10],[312,9,312,10],[313,9,313,10],[314,9,314,10],[315,9,315,10],[316,9,316,10],[317,9,317,10],[318,9,318,10],[319,9,319,10],[320,9,320,10],[321,9,321,10],[322,9,322,10],[323,9,323,10],[324,9,324,10],[325,9,325,10],[326,9,326,10],[327,9,327,10],[328,9,328,10],[329,9,329,10],[330,9,330,10],[331,9,331,10],[332,9,332,10],[333,9,333,10],[334,9,334,10],[335,9,335,10],[336,9,336,10],[337,9,337,10],[338,9,338,10],[339,9,339,10],[340,9,340,10],[341,9,341,10],[342,9,342,10],[343,9,343,10],[344,9,344,10],[345,9,345,10],[346,9,346,10],[347,9,347,10],[348,9,348,10],[349,9,349,10],[350,9,350,10],[351,9,351,10],[352,9,352,10],[353,9,353,10],[354,9,354,10],[355,9,355,10],[356,9,356,10],[357,9,357,10],[358,9,358,10],[359,9,359,10],[360,9,360,10],[361,9,361,10],[362,9,362,10],[363,9,363,10],[364,9,364,10],[365,9,365,10],[366,9,366,10],[367,9,367,10],[368,9,368,10],[369,9,369,10],[370,9,370,10],[371,9,371,10],[372,9,372,10],[373,9,373,10],[374,9,374,10],[375,9,375,10],[376,9,376,10],[377,9,377,10],[378,9,378,10],[379,9,379,10],[380,9,380,10],[381,9,381,10],[382,9,382,10],[383,9,383,10],[384,9,384,10],[385,9,385,10],[386,9,386,10],[387,9,387,10],[388,9,388,10],[389,9,389,10],[390,9,390,10],[391,9,391,10],[392,9,392,10],[393,9,393,10],[394,9,394,10],[395,9,395,10],[396,9,396,10],[397,9,397,10],[398,9,398,10],[399,9,399,10],[400,9,400,10],[401,9,401,10],[402,9,402,10],[403,9,403,10],[404,9,404,10],[405,9,405,10],[406,9,406,10],[407,9,407,10],[408,9,408,10],[409,9,409,10],[410,9,410,10],[411,9,411,10],[412,9,412,10],[413,9,413,10],[414,9,414,10],[415,9,415,10],[416,9,416,10],[417,9,417,10],[418,9,418,10],[419,9,419,10],[420,9,420,10],[421,9,421,10],[422,9,422,10],[423,9,423,10],[424,9,424,10],[425,9,425,10],[426,9,426,10],[427,9,427,10],[428,9,428,10],[429,9,429,10],[430,9,430,10],[431,9,431,10],[432,9,432,10],[433,9,433,10],[434,9,434,10],[435,9,435,10],[436,9,436,10],[437,9,437,10],[438,9,438,10],[439,9,439,10],[440,9,440,10],[441,9,441,10],[442,9,442,10],[443,9,443,10],[444,9,444,10],[445,9,445,10],[446,9,446,10],[447,9,447,10],[448,9,448,10],[449,9,449,10],[450,9,450,10],[451,9,451,10],[452,9,452,10],[453,9,453,10],[454,9,454,10],[455,9,455,10],[456,9,456,10],[457,9,457,10],[458,9,458,10],[459,9,459,10],[460,9,460,10],[461,9,461,10],[462,9,462,10],[463,9,463,10],[464,9,464,10],[465,9,465,10],[466,9,466,10],[467,9,467,10],[468,9,468,10],[469,9,469,10],[470,9,470,10],[471,9,471,10],[472,9,472,10],[473,9,473,10],[474,9,474,10],[475,9,475,10],[476,9,476,10],[477,9,477,10],[478,9,478,10],[479,9,479,10],[480,9,480,10],[481,9,481,10],[482,9,482,10],[483,9,483,10],[484,9,484,10],[485,9,485,10],[486,9,486,10],[487,9,487,10],[488,9,488,10],[489,9,489,10],[490,9,490,10],[491,9,491,10],[492,9,492,10],[493,9,493,10],[494,9,494,10],[495,9,495,10],[496,9,496,10],[497,9,497,10],[498,9,498,10],[499,9,499,10],[500,9,500,10],[501,9,501,10],[502,9,502,10],[503,9,503,10],[504,9,504,10],[505,9,505,10],[506,9,506,10],[507,9,507,10],[508,9,508,10],[509,9,509,10],[510,9,510,10],[511,9,511,10],[512,9,512,10],[513,9,513,10],[514,9,514,10],[515,9,515,10],[516,9,516,10],[517,9,517,10],[518,9,518,10],[519,9,519,10],[520,9,520,10],[521,9,521,10],[522,9,522,10],[523,9,523,10],[524,9,524,10],[525,9,525,10],[526,9,526,10],[527,9,527,10],[528,9,528,10],[529,9,529,10],[530,9,530,10],[531,9,531,10],[532,9,532,10],[533,9,533,10],[534,9,534,10],[535,9,535,10],[536,9,536,10],[537,9,537,10],[538,9,538,10],[539,9,539,10],[540,9,540,10],[541,9,541,10],[542,9,542,10],[543,9,543,10],[544,9,544,10],[545,9,545,10],[546,9,546,10],[547,9,547,10],[548,9,548,10],[549,9,549,10],[550,9,550,10],[551,9,551,10],[552,9,552,10],[553,9,553,10],[554,9,554,10],[555,9,555,10],[556,9,556,10],[557,9,557,10],[558,9,558,10],[559,9,559,10],[560,9,560,10],[561,9,561,10],[562,9,562,10],[563,9,563,10],[564,9,564,10],[565,9,565,10],[566,9,566,10],[567,9,567,10],[568,9,568,10],[569,9,569,10],[570,9,570,10],[571,9,571,10],[572,9,572,10],[573,9,573,10],[574,9,574,10],[575,9,575,10],[576,9,576,10],[577,9,577,10],[578,9,578,10],[579,9,579,10],[580,9,580,10],[581,9,581,10],[582,9,582,10],[583,9,583,10],[584,9,584,10],[585,9,585,10],[586,9,586,10],[587,9,587,10],[588,9,588,10],[589,9,589,10],[590,9,590,10],[591,9,591,10],[592,9,592,10],[593,9,593,10],[594,9,594,10],[595,9,595,10],[596,9,596,10],[597,9,597,10],[598,9,598,10],[599,9,599,10],[600,9,600,10],[601,9,601,10],[602,9,602,10],[603,9,603,10],[604,9,604,10],[605,9,605,10],[606,9,606,10],[607,9,607,10],[608,9,608,10],[609,9,609,10],[610,9,610,10],[611,9,611,10],[612,9,612,10],[613,9,613,10],[614,9,614,10],[615,9,615,10],[616,9,616,10],[617,9,617,10],[618,9,618,10],[619,9,619,10],[620,9,620,10],[621,9,621,10],[622,9,622,10],[623,9,623,10],[624,9,624,10],[625,9,625,10],[626,9,626,10],[627,9,627,10],[628,9,628,10],[629,9,629,10],[630,9,630,10],[631,9,631,10],[632,9,632,10],[633,9,633,10],[634,9,634,10],[635,9,635,10],[636,9,636,10],[637,9,637,10],[638,9,638,10],[639,9,639,10],[640,9,640,10],[641,9,641,10],[642,9,642,10],[643,9,643,10],[644,9,644,10],[645,9,645,10],[646,9,646,10],[647,9,647,10],[648,9,648,10],[649,9,649,10],[650,9,650,10],[651,9,651,10],[652,9,652,10],[653,9,653,10],[654,9,654,10],[655,9,655,10],[656,9,656,10],[657,9,657,10],[658,9,658,10],[659,9,659,10],[660,9,660,10],[661,9,661,10],[662,9,662,10],[663,9,663,10],[664,9,664,10],[665,9,665,10],[666,9,666,10],[667,9,667,10],[668,9,668,10],[669,9,669,10],[670,9,670,10],[671,9,671,10],[672,9,672,10],[673,9,673,10],[674,9,674,10],[675,9,675,10],[676,9,676,10],[677,9,677,10],[678,9,678,10],[679,9,679,10],[680,9,680,10],[681,9,681,10],[682,9,682,10],[683,9,683,10],[684,9,684,10],[685,9,685,10],[686,9,686,10],[687,9,687,10],[688,9,688,10],[689,9,689,10],[690,9,690,10],[691,9,691,10],[692,9,692,10],[693,9,693,10],[694,9,694,10],[695,9,695,10],[696,9,696,10],[697,9,697,10],[698,9,698,10],[699,9,699,10],[700,9,700,10],[701,9,701,10],[702,9,702,10],[703,9,703,10],[704,9,704,10],[705,9,705,10],[706,9,706,10],[707,9,707,10],[708,9,708,10],[709,9,709,10],[710,9,710,10],[711,9,711,10],[712,9,712,10],[713,9,713,10],[714,9,714,10],[715,9,715,10],[716,9,716,10],[717,9,717,10],[718,9,718,10],[719,9,719,10],[720,9,720,10],[721,9,721,10],[722,9,722,10],[723,9,723,10],[724,9,724,10],[725,9,725,10],[726,9,726,10],[727,9,727,10],[728,9,728,10],[729,9,729,10],[730,9,730,10],[731,9,731,10],[732,9,732,10],[733,9,733,10],[734,9,734,10],[735,9,735,10],[736,9,736,10],[737,9,737,10],[738,9,738,10],[739,9,739,10],[740,9,740,10],[741,9,741,10],[742,9,742,10],[743,9,743,10],[744,9,744,10],[745,9,745,10],[746,9,746,10],[747,9,747,10],[748,9,748,10],[749,9,749,10],[750,9,750,10],[751,9,751,10],[752,9,752,10],[753,9,753,10],[754,9,754,10],[755,9,755,10],[756,9,756,10],[757,9,757,10],[758,9,758,10],[759,9,759,10],[760,9,760,10],[761,9,761,10],[762,9,762,10],[763,9,763,10],[764,9,764,10],[765,9,765,10],[766,9,766,10],[767,9,767,10],[768,9,768,10],[769,9,769,10],[770,9,770,10],[771,9,771,10],[772,9,772,10],[773,9,773,10],[774,9,774,10],[775,9,775,10],[776,9,776,10],[777,9,777,10],[778,9,778,10],[779,9,779,10],[780,9,780,10],[781,9,781,10],[782,9,782,10],[783,9,783,10],[784,9,784,10],[785,9,785,10],[786,9,786,10],[787,9,787,10],[788,9,788,10],[789,9,789,10],[790,9,790,10],[791,9,791,10],[792,9,792,10],[793,9,793,10],[794,9,794,10],[795,9,795,10],[796,9,796,10],[797,9,797,10],[798,9,798,10],[799,9,799,10],[800,9,800,10],[801,9,801,10],[802,9,802,10],[803,9,803,10],[804,9,804,10],[805,9,805,10],[806,9,806,10],[807,9,807,10],[808,9,808,10],[809,9,809,10],[810,9,810,10],[811,9,811,10],[812,9,812,10],[813,9,813,10],[814,9,814,10],[815,9,815,10],[816,9,816,10],[817,9,817,10],[818,9,818,10],[819,9,819,10],[820,9,820,10],[821,9,821,10],[822,9,822,10],[823,9,823,10],[824,9,824,10],[825,9,825,10],[826,9,826,10],[827,9,827,10],[828,9,828,10],[829,9,829,10],[830,9,830,10],[831,9,831,10],[832,9,832,10],[833,9,833,10],[834,9,834,10],[835,9,835,10],[836,9,836,10],[837,9,837,10],[838,9,838,10],[839,9,839,10],[840,9,840,10],[841,9,841,10],[842,9,842,10],[843,9,843,10],[844,9,844,10],[845,9,845,10],[846,9,846,10],[847,9,847,10],[848,9,848,10],[849,9,849,10],[850,9,850,10],[851,9,851,10],[852,9,852,10],[853,9,853,10],[854,9,854,10],[855,9,855,10],[856,9,856,10],[857,9,857,10],[858,9,858,10],[859,9,859,10],[860,9,860,10],[861,9,861,10],[862,9,862,10],[863,9,863,10],[864,9,864,10],[865,9,865,10],[866,9,866,10],[867,9,867,10],[868,9,868,10],[869,9,869,10],[870,9,870,10],[871,9,871,10],[872,9,872,10],[873,9,873,10],[874,9,874,10],[875,9,875,10],[876,9,876,10],[877,9,877,10],[878,9,878,10],[879,9,879,10],[880,9,880,10],[881,9,881,10],[882,9,882,10],[883,9,883,10],[884,9,884,10],[885,9,885,10],[886,9,886,10],[887,9,887,10],[888,9,888,10],[889,9,889,10],[890,9,890,10],[891,9,891,10],[892,9,892,10],[893,9,893,10],[894,9,894,10],[895,9,895,10],[896,9,896,10],[897,9,897,10],[898,9,898,10],[899,9,899,10],[900,9,900,10],[901,9,901,10],[902,9,902,10],[903,9,903,10],[904,9,904,10],[905,9,905,10],[906,9,906,10],[907,9,907,10],[908,9,908,10],[909,9,909,10],[910,9,910,10],[911,9,911,10],[912,9,912,10],[913,9,913,10],[914,9,914,10],[915,9,915,10],[916,9,916,10],[917,9,917,10],[918,9,918,10],[919,9,919,10],[920,9,920,10],[921,9,921,10],[922,9,922,10],[923,9,923,10],[924,9,924,10],[925,9,925,10],[926,9,926,10],[927,9,927,10],[928,9,928,10],[929,9,929,10],[930,9,930,10],[931,9,931,10],[932,9,932,10],[933,9,933,10],[934,9,934,10],[935,9,935,10],[936,9,936,10],[937,9,937,10],[938,9,938,10],[939,9,939,10],[940,9,940,10],[941,9,941,10]],"merged_total":2042,"flags":["merged_cut"]}
[null,null,null,null,"Development of\nE-Business\nVersion: 2023-05-01"]
["Appendix A1—Staff Movement\nList of employees concerned"]
["(Appendix A1 is an integral component of this Employee Certificate Application)"]
[null,"Complete this appendix for all employees covered who are no longer employed by the company as of the date this application was signed and who have worked less than 40 weeks since their hire date.  "]
[null,"Company name",null,null,null,null,"File number",null,"Fiscal year"]
[null,{"$f":"IF('Application - Company'!A7=\"\",\"\",'Application - Company'!A7)","v":""},null,null,null,null,{"$f":"IF('Application - Company'!U10=\"\",\"\",'Application - Company'!U10)","v":""},"from",{"$f":"IF('Application - Company'!I39=\"\",\"\",'Application - Company'!I39)","v":""},"to",{"$f":"IF('Application - Company'!Q39=\"\",\"\",'Application - Company'!Q39)","v":""}]
[]
[]
["Names of employees who left the company and who worked less than 40 weeks since their hire date1","Job\n(must correspond to the title indicated in employee’s job description and in the organization chart)",null,"Termination date\n(yyyy-mm-dd)","Reason for termination",null,"Employee replaced? (Y/N)","Replacement employee's name2 if applicable","If the employee has not been replaced, specify the reason",null,"Replacment employee's start date"]
[]
["Enter as follows                                Last name (1 space) First name"]
[null,null,null,null,null,null,null,null,null,null,null,null,null,null,null,null,null,null,null,null,null,null,null,null,null,{"$f":"IF(ISBLANK($F12),AND($E12>=$D12,$E12>=DATE(2008,3,14)),AND($E12>=$D12,$E12>=DATE(2008,3,14),$E12<=$F12))","v":false}]
[null,null,null,null,null,null,null,null,null,null,null,null,null,null,null,null,null,null,null,null,null,null,null,null,null,{"$f":"IF(ISBLANK($F13),AND($E13>=$D13,$E13>=DATE(2008,3,14)),AND($E13>=$D13,$E13>=DATE(2008,3,14),$E13<=$F13))","v":false}]
[]
[]
[]
[]
[null,null,null,null,null,null,null,null,null,null,null,null,null,null,null,null,null,null,null,null,null,null,null,null,null,{"$f":"IF(ISBLANK($F18),AND($E18>=$D18,$E18>=DATE(2008,3,14)),AND($E18>=$D18,$E18>=DATE(2008,3,14),$E18<=$F18))","v":false}]
[null,null,null,null,null,null,null,null,null,null,null,null,null,null,null,null,null,null,null,null,null,null,null,null,null,{"$f":"IF(ISBLANK($F19),AND($E19>=$D19,$E19>=DATE(2008,3,14)),AND($E19>=$D19,$E19>=DATE(2008,3,14),$E19<=$F19))","v":false}]
[]
[]
[]
[]
[]
[null,null,null,null,null,null,null,null,null,null,null,null,null,null,null,null,null,null,null,null,null,null,null,null,null,{"$f":"IF(ISBLANK($F25),AND($E25>=$D25,$E25>=DATE(2008,3,14)),AND($E25>=$D25,$E25>=DATE(2008,3,14),$E25<=$F25))","v":false}]
[null,null,null,null,null,null,null,null,null,null,null,null,null,null,null,null,null,null,null,null,null,null,null,null,null,{"$f":"IF(ISBLANK($F26),AND($E26>=$D26,$E26>=DATE(2008,3,14)),AND($E26>=$D26,$E26>=DATE(2008,3,14),$E26<=$F26))","v":false}]
[null,null,null,null,null,null,null,null,null,null,null,null,null,null,null,null,null,null,null,null,null,null,null,null,null,{"$f":"IF(ISBLANK($F27),AND($E27>=$D27,$E27>=DATE(2008,3,14)),AND($E27>=$D27,$E27>=DATE(2008,3,14),$E27<=$F27))","v":false}]
["1. Please provide a record of employment for each employee covered who is no longer with the company as of the date this application is signed."]
["2. If the employee has been replaced, please provide the replacement employee's employment contract, signed by both parties, along with a copy of the employee’s résumé at the time of hire.",null,null,null,null,null,null,null,null,null,null,null,null,null,null,null,null,null,null,null,null,null,null,null,null,{"$f":"IF(ISBLANK($F29),AND($E29>=$D29,$E29>=DATE(2008,3,14)),AND($E29>=$D29,$E29>=DATE(2008,3,14),$E29<=$F29))","v":false}]
[]
["3. If the number of employees covered referred to in Notes 1 and 2 is over 25, you do not need to provide the requested documents when submitting your application.  The project manager will contact you as soon as possible to obtain the documents required to proceed with your application. ",null,null,null,null,null,null,null,null,null,null,null,null,null,null,null,null,null,null,null,null,null,null,null,null,{"$f":"IF(ISBLANK($F31),AND($E31>=$D31,$E31>=DATE(2008,3,14)),AND($E31>=$D31,$E31>=DATE(2008,3,14),$E31<=$F31))","v":false}]
[null,null,null,null,null,null,null,null,null,null,null,null,null,null,null,null,null,null,null,null,null,null,null,null,null,false]
["Yes",null,null,null,null,null,null,null,null,null,null,null,null,null,null,null,null,null,null,null,null,null,null,null,null,false]
["No",null,null,null,null,null,null,null,null,null,null,null,null,null,null,null,null,null,null,null,null,null,null,null,null,false]
[null,null,null,null,null,null,null,null,null,null,null,null,null,null,null,null,null,null,null,null,null,null,null,null,null,false]
[null,null,null,null,null,null,null,null,null,null,null,null,null,null,null,null,null,null,null,null,null,null,null,null,null,false]
[null,null,null,null,null,null,null,null,null,null,null,null,null,null,null,null,null,null,null,null,null,null,null,null,null,false]
[null,null,null,null,null,null,null,null,null,null,null,null,null,null,null,null,null,null,null,null,null,null,null,null,null,false]
[null,null,null,null,null,null,null,null,null,null,null,null,null,null,null,null,null,null,null,null,null,null,null,null,null,false]
[null,null,null,null,null,null,null,null,null,null,null,null,null,null,null,null,null,null,null,null,null,null,null,null,null,false]
[null,null,null,null,null,null,null,null,null,null,null,null,null,null,null,null,null,null,null,null,null,null,null,null,null,false]
[null,null,null,null,null,null,null,null,null,null,null,null,null,null,null,null,null,null,null,null,null,null,null,null,null,false]
[null,null,null,null,null,null,null,null,null,null,null,null,null,null,null,null,null,null,null,null,null,null,null,null,null,false]
[null,null,null,null,null,null,null,null,null,null,null,null,null,null,null,null,null,null,null,null,null,null,null,null,null,false]
[null,null,null,null,null,null,null,null,null,null,null,null,null,null,null,null,null,null,null,null,null,null,null,null,null,false]
[null,null,null,null,null,null,null,null,null,null,null,null,null,null,null,null,null,null,null,null,null,null,null,null,null,false]
[null,null,null,null,null,null,null,null,null,null,null,null,null,null,null,null,null,null,null,null,null,null,null,null,null,false]
[null,null,null,null,null,null,null,null,null,null,null,null,null,null,null,null,null,null,null,null,null,null,null,null,null,false]

{"sheet":"Appendix B","index":6,"n_rows":33,"n_cols":9,"rows_kept":33,"cut":false,"hidden":false,"merged":[[32,1,32,8],[25,1,25,6],[24,1,24,6],[18,5,18,6],[19,5,19,6],[21,5,21,6],[18,3,18,4],[19,3,19,4],[20,3,20,4],[21,3,21,4],[22,3,22,4],[23,3,23,4],[22,5,22,6],[0,3,0,8],[3,0,3,8],[1,1,1,8],[2,1,2,8],[4,1,4,8],[5,1,5,8],[6,1,6,8],[8,1,8,5],[17,5,17,6],[10,6,10,8],[7,7,7,8],[8,7,8,8],[14,5,14,6],[15,5,15,6],[16,5,16,6],[13,5,13,6],[11,1,11,8],[12,5,12,6],[12,3,12,4],[7,1,7,5],[14,3,14,4],[13,3,13,4],[30,0,31,0],[30,1,31,8],[27,1,27,8],[26,1,26,8],[28,0,29,0],[28,1,29,8],[15,3,15,4],[16,3,16,4],[17,3,17,4]]}
[null,null,null,"Development of\nE-Business\nVersion: 2023-05-01"]
[null,"Appendix B - Application for a Corporation Certificate"]
[null,"Type of projects"]
["(Appendix B is an integral component of the Corporation Certificate Application)"]
[null,"Provide a detailled description of the main projects (contracts) completed during the fiscal year in question. This description must provide for a clear understanding of the type of services provided or products (applications) sold.  The projects listed must account for at least 50% of the company’s gross income or represent the company's top ten projects in terms of gross income."]
[null,"To support the information provided in this appendix, please enclose an excerpt from your accounting system providing a breakdown of your income, by customer or by project, for the fiscal year."]
[]
[null,"Company name",null,null,null,null,null,"IQ file number "]
[null,{"$f":"IF('Application - Company'!A7=\"\",\"\",'Application - Company'!A7)","v":""},null,null,null,null,null,{"$f":"IF('Application - Company'!U10=\"\",\"\",'Application - Company'!U10)","v":""}]
[]
[null,"Fiscal year from:",null,{"$f":"IF('Application - Company'!I39=\"\",\"\",'Application - Company'!I39)","v":""},"to",{"$f":"IF('Application - Company'!Q39=\"\",\"\",'Application - Company'!Q39)","v":""}]
[]
[null,"Number or name of application or contract",null,"Name of customers involved in the contract",null,"Provide a detailed description of the type of  services offered",null,"Income ($) related to carrying out the contract for the fiscal year in question1","Percentage"]
[null,"Example:\n\nContract #C148000",null,"XYZ Insurance Co.",null,"Development of an application for submitting quotes and entering into insurance contracts on-line. The income includes a needs analysis, application development, user testing, application installation and user training. Contract does not include support.",null,165000,0.39760000000000001]
[null,"Example:\n\nE-sport application",null,"DEF Company Inc.",null,"Sale of e-sport software developed. This software is for sportswear e-business. The sales product includes the licence, application installation, user training and after-sales support.",null,250000,0.60240000000000005]
[null,null,null,null,null,null,null,null,{"$f":"H16/$H$26","v":{"$error":"#DIV/0!"}}]
[null,null,null,null,null,null,null,null,{"$f":"H17/$H$26","v":{"$error":"#DIV/0!"}}]
[null,null,null,null,null,null,null,null,{"$error":"#DIV/0!"}]
[null,null,null,null,null,null,null,null,{"$error":"#DIV/0!"}]
[null,null,null,null,null,null,null,null,{"$error":"#DIV/0!"}]
[null,null,null,null,null,null,null,null,{"$error":"#DIV/0!"}]
[null,null,null,null,null,null,null,null,{"$error":"#DIV/0!"}]
[null,null,null,null,null,null,null,null,{"$error":"#DIV/0!"}]
[null,null,null,null,null,null,null,null,{"$error":"#DIV/0!"}]
[null,"Income not broken down2",null,null,null,null,null,0,{"$error":"#DIV/0!"}]
[null,"Gross income on the financial statements for the fiscal year in question3",null,null,null,null,null,{"$f":"SUM(H16:H25)","v":0},{"$f":"SUM(I16:I25)","v":{"$error":"#DIV/0!"}}]
[1,"The amount indicated may differ from the amount specified in the contract since the periods covered by the contract  "]
[null,"may be different from the fiscal year in question."]
[2,"Provide the total of all income reported in the financial statements for the fiscal year in question and not included in the previously described contracts."]
[]
[3,"The amount reported as gross income must match the gross income or sales reported in the income statements for the fiscal year in question."]
[]
[null,"If any contracts were conducted during the fiscal year involving a government organization end user, we recommend that you complete Appendix B1 instead of Appendix B to expedite processing of your tax credit application by Revenu Québec. Appendix B1 will be an integral component of the Corporation Certificate Application. Information contained in Appendix B1 may be shared with Revenu Québec under the agreement to collect information."]

{"sheet":"Appendix B1","index":7,"n_rows":39,"n_cols":12,"rows_kept":39,"cut":false,"hidden":false,"merged":[[28,1,28,10],[32,1,32,11],[30,1,30,11],[34,1,35,11],[38,1,38,11],[36,1,36,11],[23,4,23,6],[25,1,25,9],[26,1,26,9],[20,4,20,6],[22,4,22,6],[21,4,21,6],[24,4,24,6],[18,1,18,2],[18,4,18,6],[19,1,19,2],[19,4,19,6],[16,1,16,2],[16,4,16,6],[17,1,17,2],[17,4,17,6],[8,1,8,10],[9,1,9,10],[10,1,10,10],[11,1,11,9],[15,1,15,10],[12,1,12,8],[14,1,14,2],[7,1,7,10],[1,4,1,8],[2,1,2,10],[3,1,3,10],[4,1,4,10],[6,1,6,10]]}
[]
[]
[null,"Appendix B1 - Application for a Corporation Certificate"]
[null,"Type of Contracts"]
[null,"(This is not a required appendix, but if contracts are carried out during the fiscal year where the end user is a government organization/entity, you may choose to complete Appendix B1 instead of Appendix B. In such case, Appendix B1 will be an integral component of the Corporation Certificate Application)."]
[]
[null,"The information contained in this Appendix may be shared with Revenu Québec under the agreement to collect information, which may expedite processing of your tax credit application by Revenu Québec."]
[]
[null,"Please complete the enclosed table for all contracts (100%) completed during the  fiscal year in question. However, for the column labelled “Provide a detailed description of the services offered” please refer to Appendix B for the instructions to follow, as well as for the documents to attach to support your certificate application with Investissement Québec."]
[]
[]
[null,"Company name",null,null,null,null,null,null,null,null,"NEQ (Québec entreprise number)"]
[null,{"$f":"IF('Application - Company'!A7=\"\",\"\",'Application - Company'!A7)","v":""},null,null,null,null,null,null,null,null,{"$f":"IF('Application - Company'!A10=\"\",\"\",'Application - Company'!A10)","v":""}]
[null,null,null,null,null,null,null,null,null,null,"IQ file number "]
[null,"Fiscal year",null,"from:",{"$f":"IF('Application - Company'!I39=\"\",\"\",'Application - Company'!I39)","v":""},"to:",{"$f":"IF('Application - Company'!Q39=\"\",\"\",'Application - Company'!Q39)","v":""},"",null,null,{"$f":"IF('Application - Company'!U10=\"\",\"\",'Application - Company'!U10)","v":""}]
[]
[null,"Number or name of application or contract",null,"Name of customer involved in the contract","Provide a detailed description of the services offered",null,null,"Contract date","Type of contract                             G (government) or O (other)4","End user","Income ($) related to carrying out the contract for the fiscal year in question1","Percentage"]
[null,"Example:\nC148000",null,"XYZ Insurance Co.","Development of an application for submitting quotes and entering into insurance contracts on-line. The income includes a needs analysis, application development, user testing, application installation and user training.  Contract does not include support.",null,null,"2015-04-25","O","XYZ Insurance Co.",375000,{"$f":"K18/SUM(K18:K20)","v":0.375}]
[null,"Example:\n\nA524816",null,"Revenu Québec","Development of an application that will....",null,null,"2015-10-25","G","Revenu Québec",125000,{"$f":"K19/SUM(K18:K20)","v":0.125}]
[null,"Example:\n\nN618425",null,"DEF Company Inc.","Development of an application that will....",null,null,"2016-01-15","G","Ministère de la Famille (Ministry of Family)",500000,{"$f":"K20/SUM(K18:K120)","v":0.5}]
[null,null,null,null,null,null,null,null,null,null,null,{"$f":"K21/$H$27","v":{"$error":"#DIV/0!"}}]
[null,null,null,null,null,null,null,null,null,null,null,{"$error":"#DIV/0!"}]
[null,null,null,null,null,null,null,null,null,null,null,{"$error":"#DIV/0!"}]
[null,null,null,null,null,null,null,null,null,null,null,{"$error":"#DIV/0!"}]
[null,null,null,null,null,null,null,null,null,null,null,{"$error":"#DIV/0!"}]
[null,"Income not broken down2",null,null,null,null,null,null,null,null,null,{"$error":"#DIV/0!"}]
[null,"Gross income on the financial statements for the fiscal year in question3",null,null,null,null,null,null,null,null,{"$f":"SUM(K21:K26)","v":0},{"$f":"SUM(L21:L26)","v":{"$error":"#DIV/0!"}}]
[]
[1,"The amount indicated may differ from the amount specified in the contract since the periods covered by the contract may be different from the fiscal year in question."]
[]
[2,"Provide the total of all income reported in the financial statements for the fiscal year in question and not covered in the previously described contracts."]
[]
[3,"The amount reported as gross income must match the gross income or sales reported in the income statements for the fiscal year in question."]
[]
[4,"If you have any questions or need any clarifications about the columns shown in blue, please contact Revenu Québec Customer Service at 418 659-4692 (Quebec City area) or 514 873-4692 (Montreal area) or call toll-free at 1 800 567-4692 from other parts of Canada or the United States."]
[]
[null,"Government organization/entity refers to a Ministry of the Quebec Government, as well as an entity referred to in Section II of the Tax Administration Act, such as  Hydro-Québec, Régie du logement, Agence du revenu du Québec and Investissement Québec."]
[]
[5,"Add rows if necessary."]

{"sheet":"Appendix B2","index":8,"n_rows":45,"n_cols":15,"rows_kept":45,"cut":false,"hidden":false,"merged":[[21,10,21,11],[24,0,24,1],[24,2,24,13],[42,0,42,1],[44,0,44,1],[22,2,22,3],[22,5,22,6],[13,0,13,11],[16,0,16,11],[19,0,19,6],[20,0,20,6],[15,0,15,14],[17,0,17,14],[1,3,4,8],[5,1,5,12],[6,0,6,9],[7,0,7,14],[11,0,11,9],[11,10,11,11],[9,0,9,14]]}
[]
[]
[]
[]
[]
[null,"Appendix B2 - Details on hours allocated to each contract"]
[]
["Only complete this Appendix if you have completed Appendix B1."]
[]
["As with Appendix B1, completion of this Appendix is not mandatory. However, the information contained in this Appendix may be shared with Revenu Québec under the agreement to collect information, which may expedite processing of your tax credit application by Revenu Québec."]
[]
["Starting at row 27 for columns A and B, re-enter the name and SIN of the employees listed in Appendix A. "]
[]
["For cells C26 to N26, complete the information in the column headers with the contract numbers listed in Appendix B1. You may add columns if necessary.","Identifiez les colonnes selon le"]
[]
["In the “Hours per contract” section, enter the number of hours worked during the fiscal year in question for each employee indicated in Appendix A. In the “Other employees” row, enter the total hours worked for employees who are not included in your application."]
[]
["If you have any questions or need any clarifications about this Appendix, please contact Revenu Québec Customer Service at 418 659-4692 (Quebec City area) or 514 873-4692 (Montreal area) or call toll-free at 1 800 567-4692 from other parts of Canada or the United States."]
[]
["Company name",null,null,null,null,null,null,null,null,null,"NEQ (Québec entreprise number)"]
[{"$f":"IF('Application - Company'!A7=\"\",\"\",'Application - Company'!A7)","v":""},null,null,null,null,null,null,null,null,null,{"$f":"IF('Application - Company'!A10=\"\",\"\",'Application - Company'!A10)","v":""}]
[null,null,null,null,null,null,null,null,null,null,"File number"]
["Fiscal year","from:",{"$f":"IF('Application - Company'!I39=\"\",\"\",'Application - Company'!I39)","v":""},null,"to:",{"$f":"IF('Application - Company'!Q39=\"\",\"\",'Application - Company'!Q39)","v":""},null,null,null,null,{"$f":"IF('Application - Company'!U10=\"\",\"\",'Application - Company'!U10)","v":""}]
[]
["Employees included in your application",null,"Hours per contract"]
["Employee name","SIN","Example:\n C148000","Example:\n A524816",null,null,null,null,null,null,null,null,null,null,"Total"]
[]
[]
[]
[]
[]
[]
[]
[]
[]
[]
[]
[]
[]
[]
[]
[]
["Other employees"]
[]
["Total hours per contract for the year in question",null,null,null,{"$f":"SUM(E27:E41)+E43","v":0},{"$f":"SUM(F27:F41)+F43","v":0},0,0,0,0,0,0,0,0,0]

{"sheet":"Appendix C","index":9,"n_rows":33,"n_cols":8,"rows_kept":33,"cut":false,"hidden":false,"merged":[[9,2,9,3],[0,3,0,7],[6,1,6,5],[7,1,7,5],[5,1,5,7],[3,0,3,7],[1,1,1,7],[2,1,2,7],[4,1,4,7],[10,1,10,7],[29,1,29,7],[28,1,28,5],[11,2,11,3],[12,2,12,3],[13,2,13,3],[14,2,14,3],[15,2,15,3],[16,2,16,3],[16,4,16,5],[18,2,18,3],[19,2,19,3],[20,2,20,3],[21,2,21,3],[22,2,22,3],[17,2,17,3],[21,4,21,5],[22,4,22,5],[24,2,24,3],[25,2,25,3],[26,2,26,3],[23,2,23,3],[30,1,30,7],[27,2,27,3],[11,4,11,5],[12,4,12,5],[13,4,13,5],[14,4,14,5],[15,4,15,5],[27,4,27,5],[23,4,23,5],[24,4,24,5],[25,4,25,5],[26,4,26,5],[17,4,17,5],[18,4,18,5],[19,4,19,5],[20,4,20,5]]}
[null,null,null,"Development of\nE-Business\nVersion: 2023-05-01"]
[null,"Appendix C- Application for a Corporation Certificate"]
[null,"Description of Trial Balance Income Items"]
["(Appendix C is an integral component of the Corporation Certificate Application)"]
[null,"List all income accounts on the trial balance that make up the gross income indicated in the financial statements for the fiscal year in question.\n\nFor each account, please describe the nature of the income reported in each income item in your trial balance and enter the appropriate NAICS code. "]
[]
[null,"Company name",null,null,null,null,null,"IQ file number "]
[null,{"$f":"IF('Application - Company'!A7=\"\",\"\",'Application - Company'!A7)","v":""},null,null,null,null,null,{"$f":"IF('Application - Company'!U10=\"\",\"\",'Application - Company'!U10)","v":""}]
[]
[null,"Fiscal year from:",{"$f":"IF('Application - Company'!I39=\"\",\"\",'Application - Company'!I39)","v":""},null,"to:",{"$f":"IF('Application - Company'!Q39=\"\",\"\",'Application - Company'!Q39)","v":""}]
[]
[null,"Account #","Account name",null,"Description of the products or services that generated the income included in this account",null,"NAICS Code2","Account balance"]
[null,"Example:\n\n#4010","ABC software income",null,"ABC application licencing income",null,513211,145000]
[null,"Example:\n\n#4020","Service income",null,"Annual service contract income, including technical support and updates.",null,541514,25000]
[]
[]
[]
[]
[]
[]
[]
[]
[]
[]
[]
[]
[]
[]
[null,"Gross income on the financial statements for the fiscal year in question1",null,null,null,null,null,{"$f":"SUM(H15:H28)","v":0}]
[null,"1 The amount reported as gross income must match the gross income or sales reported in the income statements for the fiscal year in question."]
[null,"2 Enter the appropriate NAICS code for each income account. A description of the codes is available on the Statistics Canada website: www.statcan.gc.ca/eng/concepts/industry"]
[]
[null,"Système de classification des industries de l'Amérique du Nord (SCIAN) Canada 2022 version 1.0"]

{"sheet":"Appendix D","index":10,"n_rows":46,"n_cols":10,"rows_kept":46,"cut":false,"hidden":false,"merged":[[13,9,13,10],[13,3,13,4],[16,3,16,4],[17,3,17,4],[16,6,16,7],[17,6,17,7],[14,9,14,10],[15,9,15,10],[16,9,16,10],[17,9,17,10],[13,6,13,7],[15,6,15,7],[14,3,14,4],[15,3,15,4],[18,6,18,7],[19,6,19,7],[21,3,21,4],[43,1,43,10],[45,1,45,10],[42,0,42,10],[44,0,44,10],[41,1,41,10],[33,3,33,4],[20,6,20,7],[21,6,21,7],[22,6,22,7],[22,3,22,4],[23,3,23,4],[24,3,24,4],[20,3,20,4],[23,6,23,7],[24,6,24,7],[18,9,18,10],[19,9,19,10],[29,6,29,7],[25,3,25,4],[27,6,27,7],[33,6,33,7],[0,1,0,10],[9,1,9,10],[4,1,4,10],[6,1,6,10],[7,1,7,6],[1,1,1,10],[2,1,2,10],[3,1,3,10],[7,8,7,9],[5,1,5,10],[8,8,8,9],[8,1,8,6],[11,2,11,3],[11,5,11,6],[20,9,20,10],[21,9,21,10],[22,9,22,10],[18,3,18,4],[19,3,19,4],[14,6,14,7],[35,6,35,7],[26,6,26,7],[30,3,30,4],[30,6,30,7],[35,3,35,4],[25,6,25,7],[34,3,34,4],[28,3,28,4],[28,6,28,7],[26,3,26,4],[27,3,27,4],[31,3,31,4],[32,3,32,4],[29,3,29,4],[31,6,31,7],[32,6,32,7],[34,6,34,7],[40,3,40,4],[40,6,40,7],[36,6,36,7],[36,3,36,4],[37,3,37,4],[37,6,37,7],[38,3,38,4],[38,6,38,7],[39,3,39,4],[39,6,39,7],[33,9,33,10],[34,9,34,10],[35,9,35,10],[36,9,36,10],[40,9,40,10],[37,9,37,10],[38,9,38,10],[39,9,39,10],[23,9,23,10],[24,9,24,10],[25,9,25,10],[26,9,26,10],[27,9,27,10],[31,9,31,10],[29,9,29,10],[30,9,30,10],[32,9,32,10],[28,9,28,10]]}
[null,"Development of\nE-Business\nVersion: 2023-05-01"]
[null,"Appendix D - Application for a Corporation Certificate"]
[null,"Services Provided"]
[null,"(Appendix D is an integral component of the Corporation Certificate Application)"]
[null,"Please list and briefly describe the services offered to persons who have or are deemed to have a non-arm's-length relationship with your company for the fiscal year in question. Also, please indicate the gross income associated with these services for the fiscal year covered by this application.  In addition, please indicate who are the end users of the applications developed, if they are not at arm’s length or deemed not to be, and if they are located outside Québec."]
[]
[]
[null,"Company name",null,null,null,null,null,null,"File number"]
[null,{"$f":"IF('Application - Company'!A7=\"\",\"\",'Application - Company'!A7)","v":""},null,null,null,null,null,null,{"$f":"IF('Application - Company'!U10=\"\",\"\",'Application - Company'!U10)","v":""}]
[]
[]
[null,"Fiscal year from:",{"$f":"IF('Application - Company'!I39=\"\",\"\",'Application - Company'!I39)","v":""},null,"to:",{"$f":"IF('Application - Company'!Q39=\"\",\"\",'Application - Company'!Q39)","v":""}]
[]
[null,"Person1 who is or deemed2 to have a non-arm’s-length relationship with the company.  Provide a brief description of the relationship","Description of services offered","Income derived from the services provided",null,"General ledger account #","End users of the services3",null,"End users who are not at arm's length or deemed not to be","End users of the application located outside of Québec"]
[null,"Example: \n\nABC Inc., parent company","Sales of application Y",5000,null,"#4020","DEF Company Inc.",null,"No","Yes"]
[]
[]
[]
[]
[]
[]
[]
[]
[]
[]
[]
[]
[]
[]
[]
[]
[]
[]
[]
[]
[]
[]
[]
[]
[]
[null,null,null,{"$f":"SUM(D16:D40)","v":0}]
[1,"Includes companies and partnerships."]
[]
[2,"A company is deemed to have a non-arm's-length relationship with another person when the company has significant influence over the other person, resulting from an agreement such that, if this influence were exercised, it would result in de facto control by the company over the other person."]
[]
[3,"Refers to the person who uses, directly or indirectly, applications developed by the company following the provision of services, and does not include the customers of that person."]

{"sheet":"Appendix E","index":11,"n_rows":45,"n_cols":42,"rows_kept":45,"cut":false,"hidden":false,"merged":[[44,0,44,4],[11,5,11,6],[42,0,42,4],[13,2,13,4],[23,2,23,3],[28,2,28,3],[24,2,24,3],[25,2,25,3],[32,2,32,3],[33,2,33,3],[35,2,35,3],[23,0,23,1],[24,0,24,1],[36,2,36,3],[37,2,37,3],[25,0,25,1],[21,2,21,3],[22,2,22,3],[21,0,21,1],[14,2,14,4],[22,0,22,1],[15,0,15,4],[16,0,16,4],[3,0,3,4],[5,0,5,4],[8,0,8,2],[17,0,17,4],[4,0,4,4],[11,2,11,3],[0,2,0,4],[34,0,34,1],[27,0,27,1],[28,0,28,1],[32,0,32,1],[33,0,33,1],[29,0,29,1],[30,0,30,1],[1,0,1,4],[2,0,2,4],[20,0,20,1],[18,1,18,4],[13,0,13,1],[20,2,20,3],[9,0,9,2],[6,0,6,4],[38,2,38,3],[41,0,41,1],[40,2,40,3],[41,2,41,3],[39,2,39,3],[36,0,36,1],[37,0,37,1],[40,0,40,1],[39,0,39,1],[38,0,38,1],[34,2,34,3],[29,2,29,3],[30,2,30,3],[26,2,26,3],[35,0,35,1],[27,2,27,3],[31,0,31,1],[26,0,26,1],[31,2,31,3]]}
[null,null,"Development of\nE-Business\nVersion: 2023-05-01"]
["Appendix E - Application for an Employee Certificate"]
["Job description"]
["(Appendix E is an integral component of the Employee Certificate Application)\n\nComplete this appendix for all employees for whom you are claiming the tax credit."]
["Please use a separate tab for each job type.1"]
["You need to provide a job description for each type of job covered by your tax credit application. Provide only a single job description if there are multiple employees with the same job. An adequate description must be provided for each job, outlining all related tasks. Please identify the percentage of time allocated to each task in a given job (do not indicate a task representing 100 % of the employee's time)."]
["In processing the application, Investissement Québec may require time sheets, an invoicing report or any other document supporting the job descriptions provided to justify the jobs covered. For more information, consult our \"Guidelines for Task Descriptions on Eligibility Certificate Applications\" on our website: https://www.investquebec.com/documents/qc/fichesdetaillees/NouvellesLignesDirectrices_FiscalMeasures.pdf"]
[]
["Company name",null,null,null,"IQ file number "]
[{"$f":"IF('Application - Company'!A7=\"\",\"\",'Application - Company'!A7)","v":""},null,null,null,{"$f":"IF('Application - Company'!U10=\"\",\"\",'Application - Company'!U10)","v":""}]
[]
["Fiscal year from:",{"$f":"IF('Application - Company'!I39=\"\",\"\",'Application - Company'!I39)","v":""},"to:",null,{"$f":"IF('Application - Company'!Q39=\"\",\"\",'Application - Company'!Q39)","v":""}]
[]
["Job title ",null,"Immediate supervisor "]
[]
["Primary responsibilities of the job"]
[]
["Incumbent(s)"]
[]
[]
["Detailed task description",null,"Time allocated to\nthese activities (%)",null,"Reserved for IQ use"]
[null,null,null,null,null,null,null,null,null,null,null,null,null,null,null,null,null,null,null,null,null,null,null,null,null,null,null,null,null,null,null,null,null,null,null,null,null,null,null,null,null,{"$f":"A22","v":0}]
[null,null,null,null,null,null,null,null,null,null,null,null,null,null,null,null,null,null,null,null,null,null,null,null,null,null,null,null,null,null,null,null,null,null,null,null,null,null,null,null,null,0]
[null,null,null,null,null,null,null,null,null,null,null,null,null,null,null,null,null,null,null,null,null,null,null,null,null,null,null,null,null,null,null,null,null,null,null,null,null,null,null,null,null,0]
[null,null,null,null,null,null,null,null,null,null,null,null,null,null,null,null,null,null,null,null,null,null,null,null,null,null,null,null,null,null,null,null,null,null,null,null,null,null,null,null,null,0]
[null,null,null,null,null,null,null,null,null,null,null,null,null,null,null,null,null,null,null,null,null,null,null,null,null,null,null,null,null,null,null,null,null,null,null,null,null,null,null,null,null,0]
[null,null,null,null,null,null,null,null,null,null,null,null,null,null,null,null,null,null,null,null,null,null,null,null,null,null,null,null,null,null,null,null,null,null,null,null,null,null,null,null,null,0]
[null,null,null,null,null,null,null,null,null,null,null,null,null,null,null,null,null,null,null,null,null,null,null,null,null,null,null,null,null,null,null,null,null,null,null,null,null,null,null,null,null,0]
[null,null,null,null,null,null,null,null,null,null,null,null,null,null,null,null,null,null,null,null,null,null,null,null,null,null,null,null,null,null,null,null,null,null,null,null,null,null,null,null,null,0]
[null,null,null,null,null,null,null,null,null,null,null,null,null,null,null,null,null,null,null,null,null,null,null,null,null,null,null,null,null,null,null,null,null,null,null,null,null,null,null,null,null,0]
[null,null,null,null,null,null,null,null,null,null,null,null,null,null,null,null,null,null,null,null,null,null,null,null,null,null,null,null,null,null,null,null,null,null,null,null,null,null,null,null,null,0]
[null,null,null,null,null,null,null,null,null,null,null,null,null,null,null,null,null,null,null,null,null,null,null,null,null,null,null,null,null,null,null,null,null,null,null,null,null,null,null,null,null,0]
[null,null,null,null,null,null,null,null,null,null,null,null,null,null,null,null,null,null,null,null,null,null,null,null,null,null,null,null,null,null,null,null,null,null,null,null,null,null,null,null,null,0]
[null,null,null,null,null,null,null,null,null,null,null,null,null,null,null,null,null,null,null,null,null,null,null,null,null,null,null,null,null,null,null,null,null,null,null,null,null,null,null,null,null,0]
[null,null,null,null,null,null,null,null,null,null,null,null,null,null,null,null,null,null,null,null,null,null,null,null,null,null,null,null,null,null,null,null,null,null,null,null,null,null,null,null,null,0]
[null,null,null,null,null,null,null,null,null,null,null,null,null,null,null,null,null,null,null,null,null,null,null,null,null,null,null,null,null,null,null,null,null,null,null,null,null,null,null,null,null,0]
[null,null,null,null,null,null,null,null,null,null,null,null,null,null,null,null,null,null,null,null,null,null,null,null,null,null,null,null,null,null,null,null,null,null,null,null,null,null,null,null,null,0]
[null,null,null,null,null,null,null,null,null,null,null,null,null,null,null,null,null,null,null,null,null,null,null,null,null,null,null,null,null,null,null,null,null,null,null,null,null,null,null,null,null,0]
[null,null,null,null,null,null,null,null,null,null,null,null,null,null,null,null,null,null,null,null,null,null,null,null,null,null,null,null,null,null,null,null,null,null,null,null,null,null,null,null,null,0]
[null,null,null,null,null,null,null,null,null,null,null,null,null,null,null,null,null,null,null,null,null,null,null,null,null,null,null,null,null,null,null,null,null,null,null,null,null,null,null,null,null,{"$f":"A40","v":0}]
[null,null,null,null,null,null,null,null,null,null,null,null,null,null,null,null,null,null,null,null,null,null,null,null,null,null,null,null,null,null,null,null,null,null,null,null,null,null,null,null,null,0]
["Total (Must add up to 100%):",null,{"$f":"SUM(C22:E41)","v":0},null,null,null,null,null,null,null,null,null,null,null,null,null,null,null,null,null,null,null,null,null,null,null,null,null,null,null,null,null,null,null,null,null,null,null,null,null,null,"Total (Must add up to 100%):"]
["The description of tasks reflects the actual tasks performed with nothing added or removed from the responsibilities and tasks that were carried out by the incumbent(s) during the fiscal year in question."]
[]
["1. Copy this page into another worksheet but do not add columns or rows (do not insert a worksheet from a previous year)."]

{"sheet":"Appendix E (Sample)","index":12,"n_rows":43,"n_cols":42,"rows_kept":43,"cut":false,"hidden":false,"merged":[[42,0,43,4],[11,5,11,6],[14,0,14,4],[15,0,15,4],[1,0,1,4],[2,0,2,4],[9,0,9,2],[3,0,3,4],[5,0,5,4],[8,0,8,2],[6,0,6,4],[4,0,4,4],[11,2,11,3],[36,2,36,3],[39,0,39,1],[21,2,21,3],[22,2,22,3],[23,2,23,3],[24,0,24,1],[25,0,25,1],[33,2,33,3],[37,2,37,3],[38,2,38,3],[26,0,26,1],[27,0,27,1],[28,0,28,1],[29,0,29,1],[30,0,30,1],[37,0,37,1],[40,0,40,4],[12,2,12,4],[27,2,27,3],[29,2,29,3],[30,2,30,3],[21,0,21,1],[22,0,22,1],[23,0,23,1],[31,2,31,3],[32,2,32,3],[20,2,20,3],[20,0,20,1],[16,0,16,4],[39,2,39,3],[35,2,35,3],[34,2,34,3],[0,2,0,4],[31,0,31,1],[32,0,32,1],[33,0,33,1],[38,0,38,1],[19,0,19,1],[17,1,17,4],[18,0,18,4],[12,0,12,1],[19,2,19,3],[13,2,13,4],[24,2,24,3],[25,2,25,3],[34,0,34,1],[35,0,35,1],[36,0,36,1]]}
[null,null,"Development of\nE-Business\nVersion: 2023-05-01"]
["Appendix E - Application for an Employee Certificate"]
["Job description"]
["(Appendix E is an integral component of the Employee Certificate Application)\n\nComplete this appendix for all employees for whom you are claiming the tax credit."]
["Please use a separate tab for each job type.1"]
["You need to provide a job description for each type of job covered by your tax credit application. Provide only a single job description if there are multiple employees with the same job.  A job is considered to be identical when the tasks are the same and the percentages are identical. Each job must be adequately described and all the tasks involved must be indicated.  Please identify the percentage of time allocated to each task in a given job (do not indicate a task representing 100% of the employee's time)."]
["In processing the application, Investissement Québec may require time sheets, an invoicing report or any other document supporting the job descriptions provided to justify the jobs covered. For more information, consult our \"Guidelines for Task Descriptions on Eligibility Certificate Applications\" on our website:  https://www.investquebec.com/documents/qc/fichesdetaillees/NouvellesLignesDirectrices_FiscalMeasures.pdf"]
[]
["Company name",null,null,null,"IQ file number "]
["ABC Inc.",null,null,null,"D888888"]
[]
["Fiscal year from:","","to:",null,""]
["Job title ",null,"Immediate supervisor "]
["Senior Project Manager (R&D)"]
["Primary responsibilities of the job"]
["The employee is responsible for planning the functional and technical needs of application development projects, as well as directing and controlling variables (budget, schedules, quality, etc.) from start-up to closure of projects. The employee also coordinates and supports the R&D team in achieving results."]
["Incumbent(s)"]
["Mr. X, Ms. Y and Mr. Z"]
[]
["Detailed task description",null,"Time allocated to\nthese activities (%)",null,"Reserved for IQ use"]
["Carries out development and takes part in programming for situations involving complex issues",null,0.35,null,null,null,null,null,null,null,null,null,null,null,null,null,null,null,null,null,null,null,null,null,null,null,null,null,null,null,null,null,null,null,null,null,null,null,null,null,null,{"$f":"A21","v":"Carries out development and takes part in programming for situations involving complex issues"}]
[]
["Takes part in quality control",null,null,null,null,null,null,null,null,null,null,null,null,null,null,null,null,null,null,null,null,null,null,null,null,null,null,null,null,null,null,null,null,null,null,null,null,null,null,null,null,"Takes part in quality control"]
["- defining testing",null,0.1,null,null,null,null,null,null,null,null,null,null,null,null,null,null,null,null,null,null,null,null,null,null,null,null,null,null,null,null,null,null,null,null,null,null,null,null,null,null,"- defining testing"]
["- occasionally takes part in testing",null,0.05,null,null,null,null,null,null,null,null,null,null,null,null,null,null,null,null,null,null,null,null,null,null,null,null,null,null,null,null,null,null,null,null,null,null,null,null,null,null,"- occasionally takes part in testing"]
["- following up on implementation of recommendations to resolve issues",null,0.05,null,null,null,null,null,null,null,null,null,null,null,null,null,null,null,null,null,null,null,null,null,null,null,null,null,null,null,null,null,null,null,null,null,null,null,null,null,null,"- following up on implementation of recommendations to resolve issues"]
[null,null,null,null,null,null,null,null,null,null,null,null,null,null,null,null,null,null,null,null,null,null,null,null,null,null,null,null,null,null,null,null,null,null,null,null,null,null,null,null,null,0]
["Supervises and coaches the programmers on the processes and technologies used.",null,0.2,null,null,null,null,null,null,null,null,null,null,null,null,null,null,null,null,null,null,null,null,null,null,null,null,null,null,null,null,null,null,null,null,null,null,null,null,null,null,"Supervises and coaches the programmers on the processes and technologies used."]
[null,null,null,null,null,null,null,null,null,null,null,null,null,null,null,null,null,null,null,null,null,null,null,null,null,null,null,null,null,null,null,null,null,null,null,null,null,null,null,null,null,0]
["Manages timelines and budget so that projects are delivered on time and within budget.",null,0.1,null,null,null,null,null,null,null,null,null,null,null,null,null,null,null,null,null,null,null,null,null,null,null,null,null,null,null,null,null,null,null,null,null,null,null,null,null,null,"Manages timelines and budget so that projects are delivered on time and within budget."]
[null,null,null,null,null,null,null,null,null,null,null,null,null,null,null,null,null,null,null,null,null,null,null,null,null,null,null,null,null,null,null,null,null,null,null,null,null,null,null,null,null,0]
["Occasionally, conducts meetings to generate sales with local and international potential customers.",null,0.03,null,null,null,null,null,null,null,null,null,null,null,null,null,null,null,null,null,null,null,null,null,null,null,null,null,null,null,null,null,null,null,null,null,null,null,null,null,null,"Occasionally, conducts meetings to generate sales with local and international potential customers."]
[null,null,null,null,null,null,null,null,null,null,null,null,null,null,null,null,null,null,null,null,null,null,null,null,null,null,null,null,null,null,null,null,null,null,null,null,null,null,null,null,null,0]
["Administrative meetings",null,0.02,null,null,null,null,null,null,null,null,null,null,null,null,null,null,null,null,null,null,null,null,null,null,null,null,null,null,null,null,null,null,null,null,null,null,null,null,null,null,"Administrative meetings"]
[null,null,null,null,null,null,null,null,null,null,null,null,null,null,null,null,null,null,null,null,null,null,null,null,null,null,null,null,null,null,null,null,null,null,null,null,null,null,null,null,null,0]
["Training received (internal and external)",null,0.05,null,null,null,null,null,null,null,null,null,null,null,null,null,null,null,null,null,null,null,null,null,null,null,null,null,null,null,null,null,null,null,null,null,null,null,null,null,null,"Training received (internal and external)"]
[null,null,null,null,null,null,null,null,null,null,null,null,null,null,null,null,null,null,null,null,null,null,null,null,null,null,null,null,null,null,null,null,null,null,null,null,null,null,null,null,null,0]
["Training provided on application WX to customer employees ",null,0.05,null,null,null,null,null,null,null,null,null,null,null,null,null,null,null,null,null,null,null,null,null,null,null,null,null,null,null,null,null,null,null,null,null,null,null,null,null,null,"Training provided on application WX to customer employees "]
[null,null,null,null,null,null,null,null,null,null,null,null,null,null,null,null,null,null,null,null,null,null,null,null,null,null,null,null,null,null,null,null,null,null,null,null,null,null,null,null,null,0]
["Total (Must add up to 100%):",null,1,null,null,null,null,null,null,null,null,null,null,null,null,null,null,null,null,null,null,null,null,null,null,null,null,null,null,null,null,null,null,null,null,null,null,null,null,null,null,{"$f":"#REF!","v":{"$error":"#REF!"}}]
["The description of tasks reflects the actual tasks performed with nothing added or removed from the responsibilities and tasks that were carried out by the incumbent(s) during the fiscal year in question."]
[]
["1. Copy this page onto another worksheet but do not add columns or rows (do not insert a worksheet from a previous year)."]